Workbook

Sheet HR図2
A2: -10
A3: 絶対等級 | B3: -5
B4: 0
B5: 5
B6: 10
B7: 15
C8: -0.5 | D8: 0 | E8: 0.5 | F8: 1 | G8: 1.5 | H8: 2 | I8: 2.5
C9: B-V色指数
B10: B-V,視差角の誤差10％未満の恒星約20000をプロット 表面温度TをSekiguchi&Fukugita(2000)の(2)式により計算
B11: R/Rs=(Ts/T)^2・(L/Ls)^0.5 , L/Ls=10＾0.4(Ms-M)；T表面温度,M絶対等級(添字sは太陽を示す)により半径比を計算
B12: Tのみからxy色度図上の黒体軌跡の３次スプライン補間による近似式により恒星の色を推定

Sheet HIPデータ
A1: HIP番号 | B1: 赤経ｈ | C1: 赤経ｍ | D1: 赤経ｓ | E1: 赤緯± | F1: 赤緯ｈ | G1: 赤緯ｍ | H1: 赤緯ｓ | I1: 実視等級 | J1: スペクトル型 | K1: 三角視差mas | L1: 誤差 | M1: B-V | N1: 誤差 | O1: 赤経時 | P1: 赤経度 | Q1: 距離1/p(pc) | R1: 絶対等級M | S1: Dm=ms-m | T1: 表面温度T | U1: L/Ls | V1: Ts/T | W1: 半径比R/Rs | X1: 三角視差誤差比 | Y1: B-V誤差比 | Z1: 0.1 | AA1: 誤差等判定(左の値％による） | AB1: B-V | AC1: M | AD1: 半径比R/Rs | AE1: 色 | AF1: 色（塗り） | AG1: 色（線）
A2: 80763 | B2: 16 | C2: 29 | D2: 24.47 | E2: -1 | F2: 26 | G2: 25 | H2: 55 | I2: 1.06 | J2: M1Ib + B2.5V | K2: 5.4 | L2: 1.68 | M2: 1.865 | N2: 0.014 | O2: =B2+C2/60+D2/3600 -> 16.49013056 | P2: =E2*F2+G2/60+H2/3600 -> -25.56805556 | Q2: =1000/K2 -> 185.1851852 | R2: =I2-5*LOG10(Q2)+5 -> -5.278031201 | S2: =4.84-R2 -> 10.1180312 | T2: =10^(3.939654-0.395361*M2+0.2082113*M2^2-0.0604097*M2^3) -> 3424.841109 | U2: =10^(0.4*S2) -> 11148.3984 | V2: =5800/T2 -> 1.693509221 | W2: =V2^2*U2^0.5 -> 302.8177804 | X2: =L2/K2 -> 0.3111111111 | Y2: =N2/M2 -> 0.007506702413 | Z2: =$Z$1 -> 0.1 | AA2: =IF(ISERROR(AND(X2>0,X2<Z2,Y2<Z2)),0,IF(OR(AND(X2>0,X2<Z2,Y2<Z2),I2<1.5),1,0)) -> 1 | AB2: =IF(AA2=1,M2,"") -> 1.865 | AC2: =IF(AA2=1,R2,"") -> -5.278031201 | AD2: =W2 -> 302.8177804 | AE2: =getRGB_hex(T2) -> #FFF1A5 | AF2: =getRGB_VBA(T2,0.8) -> 9820927 | AG2: =getRGB_VBA(T2,0.4) -> 7184336
A3: 27989 | B3: 5 | C3: 55 | D3: 10.29 | E3: 1 | F3: 7 | G3: 24 | H3: 25.3 | I3: 0.45 | J3: M2Ib | K3: 7.63 | L3: 1.64 | M3: 1.5 | N3: 0.51 | O3: 5.919525 | P3: 7.407027778 | Q3: 131.061599 | R3: -5.13737731 | S3: 9.97737731 | T3: 4085.123472 | U3: 9793.793079 | V3: 1.419785727 | W3: 199.4899742 | X3: 0.2149410223 | Y3: 0.34 | Z3: 0.1 | AA3: 1 | AB3: 1.5 | AC3: -5.13737731 | AD3: 199.4899742 | AE3: =getRGB_hex(T3) -> #FFF7C3 | AF3: =getRGB_VBA(T3,0.8) -> 11591679 | AG3: =getRGB_VBA(T3,0.4) -> 8496067
A4: 102098 | B4: 20 | C4: 41 | D4: 25.91 | E4: 1 | F4: 45 | G4: 16 | H4: 49.2 | I4: 1.25 | J4: A2Ia | K4: 1.01 | L4: 0.57 | M4: 0.092 | N4: 0.007 | O4: 20.69053056 | P4: 45.28033333 | Q4: 990.0990099 | R4: -8.728393131 | S4: 13.56839313 | T4: 8035.188105 | U4: 267520.6139 | V4: 0.721825043 | W4: 269.4899148 | X4: 0.5643564356 | Y4: 0.07608695652 | Z4: 0.1 | AA4: 1 | AB4: 0.092 | AC4: -8.728393131 | AD4: 269.4899148 | AE4: #F9FEFF | AF4: 16705249 | AG4: 12167332
A5: 24436 | B5: 5 | C5: 14 | D5: 32.27 | E5: -1 | F5: 8 | G5: 12 | H5: 5.9 | I5: 0.18 | J5: B8Ia | K5: 4.22 | L5: 0.81 | M5: -0.03 | N5: 0.6 | O5: 5.242297222 | P5: -7.798361111 | Q5: 236.9668246 | R5: -6.693437745 | S5: 11.53343775 | T5: 8947.544175 | U5: 41055.85474 | V5: 0.648222561 | W5: 85.14042891 | X5: 0.191943128 | Y5: -20 | Z5: 0.1 | AA5: 1 | AB5: -0.03 | AC5: -6.693437745 | AD5: 85.14042891 | AE5: #F4FEFF | AF5: 16770780 | AG5: 12626081
A6: 30438 | B6: 6 | C6: 23 | D6: 57.09 | E6: -1 | F6: 52 | G6: 41 | H6: 44.6 | I6: -0.62 | J6: F0Ib | K6: 10.43 | L6: 0.53 | M6: 0.164 | N6: 0.017 | O6: 6.399191667 | P6: -51.30427778 | Q6: 95.87727709 | R6: -5.528578458 | S6: 10.36857846 | T6: 7588.367989 | U6: 14042.07807 | V6: 0.7643277195 | W6: 69.22690444 | X6: 0.05081495686 | Y6: 0.1036585366 | Z6: 0.1 | AA6: 1 | AB6: 0.164 | AC6: -5.528578458 | AD6: 69.22690444 | AE6: #FBFEFF | AF6: 16377315 | AG6: 11970470
A7: 7 | B7: 0 | C7: 0 | D7: 5.41 | E7: 1 | F7: 20 | G7: 2 | H7: 11.8 | I7: 9.64 | J7: G0 | K7: 17.74 | L7: 1.3 | M7: 0.74 | N7: 0.02 | O7: 0.001502777778 | P7: 20.03661111 | Q7: 56.36978579 | R7: 5.884768077 | S7: -1.044768077 | T7: 5452.854477 | U7: 0.3820258661 | V7: 1.063663082 | W7: 0.6992855537 | X7: 0.07328072153 | Y7: 0.02702702703 | Z7: 0.1 | AA7: 1 | AB7: 0.74 | AC7: 5.884768077 | AD7: 0.6992855537 | AE7: #FFFCED | AF7: 14083061 | AG7: 10266291
A8: 20 | B8: 0 | C8: 0 | D8: 15.11 | E8: 1 | F8: 23 | G8: 31 | H8: 45.4 | I8: 8.51 | J8: G0 | K8: 10.76 | L8: 1.06 | M8: 0.516 | N8: 0.015 | O8: 0.004197222222 | P8: 23.52927778 | Q8: 92.93680297 | R8: 3.669061357 | S8: 1.170938643 | T8: 6064.369547 | U8: 2.940190414 | V8: 0.9564060954 | W8: 1.568456215 | X8: 0.09851301115 | Y8: 0.02906976744 | Z8: 0.1 | AA8: 1 | AB8: 0.516 | AC8: 3.669061357 | AD8: 1.568456215 | AE8: #FFFDFB | AF8: 14935279 | AG8: 10856366
A9: 23 | B9: 0 | C9: 0 | D9: 17.86 | E9: 1 | F9: 13 | G9: 18 | H9: 44 | I9: 7.57 | J9: F2V | K9: 12.21 | L9: 0.95 | M9: 0.456 | N9: 0.015 | O9: 0.004961111111 | P9: 13.31222222 | Q9: 81.9000819 | R9: 3.00357832 | S9: 1.83642168 | T9: 6265.215773 | U9: 5.427110599 | V9: 0.9257462488 | W9: 1.996495142 | X9: 0.07780507781 | Y9: 0.03289473684 | Z9: 0.1 | AA9: 1 | AB9: 0.456 | AC9: 3.00357832 | AD9: 1.996495142 | AE9: #FFFDFF | AF9: 15131885 | AG9: 11052973
A10: 25 | B10: 0 | C10: 0 | D10: 19.05 | E10: -1 | F10: 44 | G10: 17 | H10: 25.1 | I10: 6.28 | J10: G3IV | K10: 13.74 | L10: 0.98 | M10: 0.763 | N10: 0.003 | O10: 0.005291666667 | P10: -43.70969444 | Q10: 72.78020378 | R10: 1.969933664 | S10: 2.870066336 | T10: 5399.754783 | U10: 14.06133434 | V10: 1.074122851 | W10: 4.326345298 | X10: 0.07132459971 | Y10: 0.003931847969 | Z10: 0.1 | AA10: 1 | AB10: 0.763 | AC10: 1.969933664 | AD10: 4.326345298 | AE10: #FFFBEC | AF10: 14017526 | AG10: 10266292
A11: 34 | B11: 0 | C11: 0 | D11: 23.87 | E11: 1 | F11: 26 | G11: 55 | H11: 5.7 | I11: 6.43 | J11: F7.5IV-V | K11: 12.71 | L11: 0.74 | M11: 0.514 | N11: 0.005 | O11: 0.006630555556 | P11: 26.91825 | Q11: 78.67820614 | R11: 1.950727753 | S11: 2.889272247 | T11: 6070.767466 | U11: 14.31228247 | V11: 0.9553981489 | W11: 3.453211992 | X11: 0.05822187254 | Y11: 0.009727626459 | Z11: 0.1 | AA11: 1 | AB11: 0.514 | AC11: 1.950727753 | AD11: 3.453211992 | AE11: #FFFDFB | AF11: 14935279 | AG11: 10856366
A12: 38 | B12: 0 | C12: 0 | D12: 26.65 | E12: -1 | F12: 79 | G12: 3 | H12: 42.6 | I12: 8.65 | J12: G6V | K12: 23.84 | L12: 0.78 | M12: 0.778 | N12: 0.015 | O12: 0.007402777778 | P12: -78.93816667 | Q12: 41.94630872 | R12: 5.536531255 | S12: -0.6965312553 | T12: 5365.899337 | U12: 0.5264868131 | V12: 1.080899889 | W12: 0.8477439395 | X12: 0.03271812081 | Y12: 0.01928020566 | Z12: 0.1 | AA12: 1 | AB12: 0.778 | AC12: 5.536531255 | AD12: 0.8477439395 | AE12: #FFFBEB | AF12: 13951991 | AG12: 10200756
A13: 43 | B13: 0 | C13: 0 | D13: 30.98 | E13: 1 | F13: 59 | G13: 33 | H13: 35.1 | I13: 6.18 | J13: G9III-IV | K13: 7.63 | L13: 0.6 | M13: 1.032 | N13: 0.005 | O13: 0.008605555556 | P13: 59.55975 | Q13: 131.061599 | R13: 0.5926226898 | S13: 4.24737731 | T13: 4864.014829 | U13: 49.99780335 | V13: 1.192430575 | W13: 10.05406454 | X13: 0.07863695937 | Y13: 0.00484496124 | Z13: 0.1 | AA13: 1 | AB13: 1.032 | AC13: 0.5926226898 | AD13: 10.05406454 | AE13: #FFFADE | AF13: 13165310 | AG13: 9610681
A14: 47 | B14: 0 | C14: 0 | D14: 32.45 | E14: -1 | F14: 56 | G14: 50 | H14: 6.9 | I14: 10.78 | J14: K3V | K14: 24.45 | L14: 1.97 | M14: 1.15 | N14: 0.02 | O14: 0.009013888889 | P14: -55.16475 | Q14: 40.8997955 | R14: 7.721394317 | S14: -2.881394317 | T14: 4660.931194 | U14: 0.07037886733 | V14: 1.244386531 | W14: 0.4108012346 | X14: 0.08057259714 | Y14: 0.01739130435 | Z14: 0.1 | AA14: 1 | AB14: 1.15 | AC14: 7.721394317 | AD14: 0.4108012346 | AE14: #FFF9D7 | AF14: 12837375 | AG14: 9348283
A15: 50 | B15: 0 | C15: 0 | D15: 34.29 | E15: -1 | F15: 53 | G15: 5 | H15: 51.6 | I15: 6.49 | J15: G1IV | K15: 16.89 | L15: 0.8 | M15: 0.616 | N15: 0.005 | O15: 0.009525 | P15: -52.90233333 | Q15: 59.20663114 | R15: 2.628148248 | S15: 2.211851752 | T15: 5767.640623 | U15: 7.669034665 | V15: 1.005610505 | W15: 2.800463738 | X15: 0.04736530491 | Y15: 0.008116883117 | Z15: 0.1 | AA15: 1 | AB15: 0.616 | AC15: 2.628148248 | AD15: 2.800463738 | AE15: #FFFCF5 | AF15: 14542066 | AG15: 10593968
A16: 54 | B16: 0 | C16: 0 | D16: 36.4 | E16: 1 | F16: 17 | G16: 58 | H16: 8.2 | I16: 10.57 | J16: M: | K16: 20.97 | L16: 1.71 | M16: 1.03 | N16: 0.015 | O16: 0.01011111111 | P16: 17.96894444 | Q16: 47.68717215 | R16: 7.177992152 | S16: -2.337992152 | T16: 4867.570248 | U16: 0.1160922261 | V16: 1.191559588 | W16: 0.4837635035 | X16: 0.08154506438 | Y16: 0.0145631068 | Z16: 0.1 | AA16: 1 | AB16: 1.03 | AC16: 7.177992152 | AD16: 0.4837635035 | AE16: #FFFADE | AF16: 13165309 | AG16: 9610681
A17: 55 | B17: 0 | C17: 0 | D17: 37.88 | E17: -1 | F17: 66 | G17: 40 | H17: 59.2 | I17: 7.4 | J17: G2IV/V | K17: 14.66 | L17: 0.98 | M17: 0.551 | N17: 0.015 | O17: 0.01052222222 | P17: -65.31688889 | Q17: 68.21282401 | R17: 3.230669852 | S17: 1.609330148 | T17: 5955.492232 | U17: 4.402831443 | V17: 0.9738909521 | W17: 1.990154036 | X17: 0.06684856753 | Y17: 0.02722323049 | Z17: 0.1 | AA17: 1 | AB17: 0.551 | AC17: 3.230669852 | AD17: 1.990154036 | AE17: #FFFCF9 | AF17: 14804208 | AG17: 10790575
A18: 57 | B18: 0 | C18: 0 | D18: 40.39 | E18: -1 | F18: 69 | G18: 40 | H18: 32.9 | I18: 8.27 | J18: K2V | K18: 33.89 | L18: 0.79 | M18: 0.863 | N18: 0.012 | O18: 0.01121944444 | P18: -68.32419444 | Q18: 29.50722927 | R18: 5.920357844 | S18: -1.080357844 | T18: 5184.409659 | U18: 0.3697063094 | V18: 1.118738754 | W18: 0.7610019965 | X18: 0.02331071112 | Y18: 0.01390498262 | Z18: 0.1 | AA18: 1 | AB18: 0.863 | AC18: 5.920357844 | AD18: 0.7610019965 | AE18: #FFFBE7 | AF18: 13689849 | AG18: 10003894
A19: 58 | B19: 0 | C19: 0 | D19: 41.7 | E19: 1 | F19: 62 | G19: 10 | H19: 33.6 | I19: 7.05 | J19: G0 | K19: 26.06 | L19: 0.67 | M19: 0.52 | N19: 0.007 | O19: 0.01158333333 | P19: 62.176 | Q19: 38.37298542 | R19: 4.129872057 | S19: 0.7101279431 | T19: 6051.632247 | U19: 1.923318359 | V19: 0.9584191113 | W19: 1.273903465 | X19: 0.02570990023 | Y19: 0.01346153846 | Z19: 0.1 | AA19: 1 | AB19: 0.52 | AC19: 4.129872057 | AD19: 1.273903465 | AE19: #FFFDFB | AF19: 14869743 | AG19: 10856366
A20: 68 | B20: 0 | C20: 0 | D20: 48.15 | E20: 1 | F20: 16 | G20: 59 | H20: 20.3 | I20: 8.79 | J20: K0 | K20: 31.8 | L20: 1.17 | M20: 0.94 | N20: 0.015 | O20: 0.013375 | P20: 16.98897222 | Q20: 31.44654088 | R20: 6.3021356 | S20: -1.4621356 | T20: 5032.859823 | U20: 0.2601032388 | V20: 1.152426295 | W20: 0.6773282637 | X20: 0.03679245283 | Y20: 0.01595744681 | Z20: 0.1 | AA20: 1 | AB20: 0.94 | AC20: 6.3021356 | AD20: 0.6773282637 | AE20: #FFFBE2 | AF20: 13492987 | AG20: 9807287
A21: 74 | B21: 0 | C21: 0 | D21: 53.25 | E21: 1 | F21: 35 | G21: 45 | H21: 9.8 | I21: 9.93 | J21: K5 | K21: 24.22 | L21: 1.36 | M21: 1.068 | N21: 0.066 | O21: 0.01479166667 | P21: 35.75272222 | Q21: 41.28819158 | R21: 6.850870694 | S21: -2.010870694 | T21: 4800.748788 | U21: 0.1569103974 | V21: 1.208144866 | W21: 0.5781810939 | X21: 0.05615194055 | Y21: 0.06179775281 | Z21: 0.1 | AA21: 1 | AB21: 1.068 | AC21: 6.850870694 | AD21: 0.5781810939 | AE21: #FFFADC | AF21: 13034239 | AG21: 9545146
A22: 80 | B22: 0 | C22: 0 | D22: 58.03 | E22: -1 | F22: 11 | G22: 49 | H22: 24.7 | I22: 8.4 | J22: G2V | K22: 15.59 | L22: 1.43 | M22: 0.566 | N22: 0.015 | O22: 0.01611944444 | P22: -10.17647222 | Q22: 64.14368185 | R22: 4.364230576 | S22: 0.4757694241 | T22: 5910.54919 | U22: 1.549914601 | V22: 0.9812962914 | W22: 1.198820608 | X22: 0.09172546504 | Y22: 0.02650176678 | Z22: 0.1 | AA22: 1 | AB22: 0.566 | AC22: 4.364230576 | AD22: 1.198820608 | AE22: #FFFCF8 | AF22: 14738672 | AG22: 10725039
A23: 81 | B23: 0 | C23: 0 | D23: 58.53 | E23: -1 | F23: 4 | G23: 55 | H23: 55.6 | I23: 8.57 | J23: G5 | K23: 23.43 | L23: 1.28 | M23: 0.642 | N23: 0.002 | O23: 0.01625833333 | P23: -3.067888889 | Q23: 42.68032437 | R23: 5.418861443 | S23: -0.578861443 | T23: 5697.239446 | U23: 0.5867531406 | V23: 1.018036903 | W23: 0.7938798033 | X23: 0.05463081519 | Y23: 0.003115264798 | Z23: 0.1 | AA23: 1 | AB23: 0.642 | AC23: 5.418861443 | AD23: 0.7938798033 | AE23: #FFFCF3 | AF23: 14476531 | AG23: 10528433
A24: 84 | B24: 0 | C24: 1 | D24: 0.43 | E24: 1 | F24: 27 | G24: 53 | H24: 10.8 | I24: 9.61 | J24: K0 | K24: 18.9 | L24: 1.33 | M24: 0.852 | N24: 0.046 | O24: 0.01678611111 | P24: 27.88633333 | Q24: 52.91005291 | R24: 5.992309021 | S24: -1.152309021 | T24: 5206.984007 | U24: 0.3460002333 | V24: 1.113888576 | W24: 0.7298299733 | X24: 0.07037037037 | Y24: 0.05399061033 | Z24: 0.1 | AA24: 1 | AB24: 0.852 | AC24: 5.992309021 | AD24: 0.7298299733 | AE24: #FFFBE7 | AF24: 13755385 | AG24: 10003893
A25: 90 | B25: 0 | C25: 1 | D25: 7.2 | E25: -1 | F25: 41 | G25: 53 | H25: 14.7 | I25: 7.64 | J25: F5IV/V | K25: 9.35 | L25: 0.92 | M25: 0.5 | N25: 0.015 | O25: 0.01866666667 | P25: -40.11258333 | Q25: 106.9518717 | R25: 2.494058054 | S25: 2.345941946 | T25: 6116.107532 | U25: 8.67714347 | V25: 0.9483155699 | W25: 2.649074373 | X25: 0.09839572193 | Y25: 0.03 | Z25: 0.1 | AA25: 1 | AB25: 0.5 | AC25: 2.494058054 | AD25: 2.649074373 | AE25: #FFFDFC | AF25: 15000814 | AG25: 10921902
A26: 93 | B26: 0 | C26: 1 | D26: 10.13 | E26: -1 | F26: 0 | G26: 4 | H26: 33.3 | I26: 8.12 | J26: F8V | K26: 16.74 | L26: 1.28 | M26: 0.619 | N26: 0.015 | O26: 0.01948055556 | P26: 0.07591666667 | Q26: 59.73715651 | R26: 4.238777268 | S26: 0.6012227317 | T26: 5759.386447 | U26: 1.739759003 | V26: 1.007051715 | W26: 1.337667246 | X26: 0.07646356033 | Y26: 0.02423263328 | Z26: 0.1 | AA26: 1 | AB26: 0.619 | AC26: 4.238777268 | AD26: 1.337667246 | AE26: #FFFCF4 | AF26: 14542066 | AG26: 10593969
A27: 103 | B27: 0 | C27: 1 | D27: 17.31 | E27: -1 | F27: 68 | G27: 22 | H27: 15.7 | I27: 8.29 | J27: F6V | K27: 9.15 | L27: 0.76 | M27: 0.538 | N27: 0.01 | O27: 0.021475 | P27: -67.62897222 | Q27: 109.2896175 | R27: 3.09710547 | S27: 1.74289453 | T27: 5995.26304 | U27: 4.979179832 | V27: 0.9674304466 | W27: 2.088422716 | X27: 0.08306010929 | Y27: 0.01858736059 | Z27: 0.1 | AA27: 1 | AB27: 0.538 | AC27: 3.09710547 | AD27: 2.088422716 | AE27: #FFFDF9 | AF27: 14804207 | AG27: 10790575
A28: 110 | B28: 0 | C28: 1 | D28: 23.69 | E28: 1 | F28: 39 | G28: 36 | H28: 38.9 | I28: 8.61 | J28: G5 | K28: 20.42 | L28: 1.91 | M28: 0.787 | N28: 0.003 | O28: 0.02324722222 | P28: 39.61080556 | Q28: 48.97159647 | R28: 5.160278689 | S28: -0.3202786888 | T28: 5345.867716 | U28: 0.7445408393 | V28: 1.084950154 | W28: 1.015696214 | X28: 0.09353574927 | Y28: 0.003811944091 | Z28: 0.1 | AA28: 1 | AB28: 0.787 | AC28: 5.160278689 | AD28: 1.015696214 | AE28: #FFFBEB | AF28: 13951991 | AG28: 10200756
A29: 111 | B29: 0 | C29: 1 | D29: 23.78 | E29: 1 | F29: 34 | G29: 16 | H29: 54.7 | I29: 11.28 | J29: M2 | K29: 27.11 | L29: 2.33 | M29: 1.308 | N29: 0.02 | O29: 0.02327222222 | P29: 34.28186111 | Q29: 36.88675765 | R29: 8.445647588 | S29: -3.605647588 | T29: 4401.063067 | U29: 0.03611943638 | V29: 1.317863414 | W29: 0.3300739766 | X29: 0.08594614533 | Y29: 0.01529051988 | Z29: 0.1 | AA29: 1 | AB29: 1.308 | AC29: 8.445647588 | AD29: 0.3300739766 | AE29: #FFF8CF | AF29: 12312831 | AG29: 8955071
A30: 122 | B30: 0 | C30: 1 | D30: 35.85 | E30: -1 | F30: 77 | G30: 3 | H30: 55.1 | I30: 4.78 | J30: K2III | K30: 14.77 | L30: 0.47 | M30: 1.254 | N30: 0.039 | O30: 0.026625 | P30: -76.93469444 | Q30: 67.70480704 | R30: 0.6269024766 | S30: 4.213097523 | T30: 4489.137429 | U30: 48.44389001 | V30: 1.292007672 | W30: 11.61849003 | X30: 0.03182125931 | Y30: 0.03110047847 | Z30: 0.1 | AA30: 1 | AB30: 1.254 | AC30: 0.6269024766 | AD30: 11.61849003 | AE30: #FFF9D2 | AF30: 12509695 | AG30: 9086142
A31: 128 | B31: 0 | C31: 1 | D31: 39.3 | E31: 1 | F31: 73 | G31: 36 | H31: 42.8 | I31: 6.5 | J31: Am... | K31: 15.2 | L31: 0.63 | M31: 0.182 | N31: 0.002 | O31: 0.02758333333 | P31: 73.61188889 | Q31: 65.78947368 | R31: 2.40921794 | S31: 2.43078206 | T31: 7485.67392 | U31: 9.3823758 | V31: 0.7748133383 | W31: 1.838868143 | X31: 0.04144736842 | Y31: 0.01098901099 | Z31: 0.1 | AA31: 1 | AB31: 0.182 | AC31: 2.40921794 | AD31: 1.838868143 | AE31: #FCFEFF | AF31: 16311780 | AG31: 11904934
A32: 135 | B32: 0 | C32: 1 | D32: 42.42 | E32: -1 | F32: 0 | G32: 13 | H32: 3 | I32: 8.64 | J32: G5 | K32: 20.1 | L32: 1.22 | M32: 0.62 | N32: 0.019 | O32: 0.02845 | P32: 0.2175 | Q32: 49.75124378 | R32: 5.155980287 | S32: -0.3159802871 | T32: 5756.642779 | U32: 0.7474942997 | V32: 1.007531685 | W32: 0.8776500224 | X32: 0.06069651741 | Y32: 0.03064516129 | Z32: 0.1 | AA32: 1 | AB32: 0.62 | AC32: 5.155980287 | AD32: 0.8776500224 | AE32: #FFFCF4 | AF32: 14542066 | AG32: 10593969
A33: 142 | B33: 0 | C33: 1 | D33: 48.9 | E33: 1 | F33: 66 | G33: 18 | H33: 21.6 | I33: 7.33 | J33: K0 | K33: 16.04 | L33: 0.69 | M33: 0.73 | N33: 0.008 | O33: 0.03025 | P33: 66.306 | Q33: 62.34413965 | R33: 3.35602182 | S33: 1.48397818 | T33: 5476.408949 | U33: 3.92275579 | V33: 1.059088182 | W33: 2.221569376 | X33: 0.04301745636 | Y33: 0.01095890411 | Z33: 0.1 | AA33: 1 | AB33: 0.73 | AC33: 3.35602182 | AD33: 2.221569376 | AE33: #FFFCEE | AF33: 14148597 | AG33: 10331827
A34: 143 | B34: 0 | C34: 1 | D34: 49.24 | E34: 1 | F34: 21 | G34: 27 | H34: 43.7 | I34: 10.35 | J34: K3 | K34: 20.05 | L34: 1.64 | M34: 1.033 | N34: 0.019 | O34: 0.03034444444 | P34: 21.46213889 | Q34: 49.87531172 | R34: 6.860571885 | S34: -2.020571885 | T34: 4862.238806 | U34: 0.1555146281 | V34: 1.192866132 | W34: 0.561137173 | X34: 0.08179551122 | Y34: 0.01839303001 | Z34: 0.1 | AA34: 1 | AB34: 1.033 | AC34: 6.860571885 | AD34: 0.561137173 | AE34: #FFFADE | AF34: 13165310 | AG34: 9610681
A35: 145 | B35: 0 | C35: 1 | D35: 49.44 | E35: -1 | F35: 3 | G35: 1 | H35: 38.9 | I35: 5.13 | J35: B7III-IV | K35: 7.98 | L35: 0.71 | M35: -0.128 | N35: 0.009 | O35: 0.0304 | P35: -2.972527778 | Q35: 125.3132832 | R35: -0.3599855432 | S35: 5.199985543 | T35: 9858.213745 | U35: 120.2248426 | V35: 0.5883418792 | W35: 3.795391977 | X35: 0.08897243108 | Y35: -0.0703125 | Z35: 0.1 | AA35: 1 | AB35: -0.128 | AC35: -0.3599855432 | AD35: 3.795391977 | AE35: #F0FEFF | AF35: 16770777 | AG35: 12953758
A36: 149 | B36: 0 | C36: 1 | D36: 54.88 | E36: 1 | F36: 26 | G36: 0 | H36: 20.1 | I36: 11.26 | J36: K3 | K36: 22.92 | L36: 2.17 | M36: 0.932 | N36: 0.007 | O36: 0.03191111111 | P36: 26.00558333 | Q36: 43.63001745 | R36: 8.061073066 | S36: -3.221073066 | T36: 5048.120934 | U36: 0.05147196798 | V36: 1.148942364 | W36: 0.2994896877 | X36: 0.09467713787 | Y36: 0.007510729614 | Z36: 0.1 | AA36: 1 | AB36: 0.932 | AC36: 8.061073066 | AD36: 0.2994896877 | AE36: #FFFBE3 | AF36: 13492987 | AG36: 9872823
A37: 159 | B37: 0 | C37: 2 | D37: 2.59 | E37: -1 | F37: 2 | G37: 45 | H37: 58.2 | I37: 6.93 | J37: A3 | K37: 16.92 | L37: 0.81 | M37: 0.292 | N37: 0.009 | O37: 0.03405277778 | P37: -1.233833333 | Q37: 59.10165485 | R37: 3.072001794 | S37: 1.767998206 | T37: 6925.601374 | U37: 5.095646389 | V37: 0.8374723994 | W37: 1.583217738 | X37: 0.04787234043 | Y37: 0.03082191781 | Z37: 0.1 | AA37: 1 | AB37: 0.292 | AC37: 3.072001794 | AD37: 1.583217738 | AE37: #FFFDFF | AF37: 15787495 | AG37: 11511721
A38: 169 | B38: 0 | C38: 2 | D38: 8.41 | E38: -1 | F38: 68 | G38: 16 | H38: 48.7 | I38: 9.24 | J38: M0V | K38: 63.03 | L38: 1.98 | M38: 1.39 | N38: 0.042 | O38: 0.03566944444 | P38: -67.71980556 | Q38: 15.86546089 | R38: 8.237736536 | S38: -3.397736536 | T38: 4267.267073 | U38: 0.04374267981 | V38: 1.359183735 | W38: 0.3863750113 | X38: 0.03141361257 | Y38: 0.03021582734 | Z38: 0.1 | AA38: 1 | AB38: 1.39 | AC38: 8.237736536 | AD38: 0.3863750113 | AE38: #FFF8CA | AF38: 12050687 | AG38: 8758209
A39: 171 | B39: 0 | C39: 2 | D39: 9.65 | E39: 1 | F39: 27 | G39: 5 | H39: 4.2 | I39: 5.8 | J39: G3V | K39: 80.63 | L39: 3.03 | M39: 0.69 | N39: 0.015 | O39: 0.03601388889 | P39: 27.0845 | Q39: 12.40233164 | R39: 5.332483299 | S39: -0.492483299 | T39: 5573.643407 | U39: 0.6353407047 | V39: 1.040611962 | W39: 0.8631394523 | X39: 0.03757906486 | Y39: 0.02173913043 | Z39: 0.1 | AA39: 1 | AB39: 0.69 | AC39: 5.332483299 | AD39: 0.8631394523 | AE39: #FFFCF0 | AF39: 14279924 | AG39: 10397362
A40: 179 | B40: 0 | C40: 2 | D40: 16.53 | E40: -1 | F40: 13 | G40: 24 | H40: 27.1 | I40: 6.9 | J40: G0V | K40: 14.91 | L40: 0.9 | M40: 0.534 | N40: 0.002 | O40: 0.037925 | P40: -12.59247222 | Q40: 67.06908115 | R40: 2.767388217 | S40: 2.072611783 | T40: 6007.657189 | U40: 6.745974778 | V40: 0.9654345808 | W40: 2.420850988 | X40: 0.06036217304 | Y40: 0.003745318352 | Z40: 0.1 | AA40: 1 | AB40: 0.534 | AC40: 2.767388217 | AD40: 2.420850988 | AE40: #FFFDFA | AF40: 14869743 | AG40: 10856367
A41: 184 | B41: 0 | C41: 2 | D41: 21.55 | E41: 1 | F41: 11 | G41: 0 | H41: 22.8 | I41: 8.48 | J41: K0 | K41: 29.75 | L41: 1.21 | M41: 0.888 | N41: 0.02 | O41: 0.03931944444 | P41: 11.00633333 | Q41: 33.61344538 | R41: 5.84743485 | S41: -1.00743485 | T41: 5134.009831 | U41: 0.3953903448 | V41: 1.129721249 | W41: 0.8025195576 | X41: 0.04067226891 | Y41: 0.02252252252 | Z41: 0.1 | AA41: 1 | AB41: 0.888 | AC41: 5.84743485 | AD41: 0.8025195576 | AE41: #FFFBE5 | AF41: 13624314 | AG41: 9938358
A42: 194 | B42: 0 | C42: 2 | D42: 29.76 | E42: 1 | F42: 8 | G42: 29 | H42: 8.1 | I42: 5.7 | J42: F0V | K42: 26.53 | L42: 0.77 | M42: 0.315 | N42: 0.006 | O42: 0.0416 | P42: 8.485583333 | Q42: 37.69317753 | R42: 2.81868625 | S42: 2.02131375 | T42: 6821.610104 | U42: 6.434658456 | V42: 0.8502391535 | W42: 1.833770368 | X42: 0.0290237467 | Y42: 0.01904761905 | Z42: 0.1 | AA42: 1 | AB42: 0.315 | AC42: 2.81868625 | AD42: 1.833770368 | AE42: #FFFDFF | AF42: 15721960 | AG42: 11446185
A43: 201 | B43: 0 | C43: 2 | D43: 33.44 | E43: 1 | F43: 18 | G43: 41 | H43: 0.1 | I43: 8.24 | J43: F5 | K43: 10.06 | L43: 0.99 | M43: 0.474 | N43: 0.014 | O43: 0.04262222222 | P43: 18.68336111 | Q43: 99.40357853 | R43: 3.252989904 | S43: 1.587010096 | T43: 6202.968147 | U43: 4.313244116 | V43: 0.9350362379 | W43: 1.815761922 | X43: 0.09840954274 | Y43: 0.02953586498 | Z43: 0.1 | AA43: 1 | AB43: 0.474 | AC43: 3.252989904 | AD43: 1.815761922 | AE43: #FFFDFE | AF43: 15066349 | AG43: 10987437
A44: 223 | B44: 0 | C44: 2 | D44: 47.14 | E44: 1 | F44: 2 | G44: 7 | H44: 49.4 | I44: 7.17 | J44: G0 | K44: 21.58 | L44: 1.65 | M44: 0.617 | N44: 0.015 | O44: 0.04642777778 | P44: 2.130388889 | Q44: 46.33920297 | R44: 3.840257202 | S44: 0.9997427983 | T44: 5764.88536 | U44: 2.511291457 | V44: 1.006091125 | W44: 1.604069555 | X44: 0.07645968489 | Y44: 0.02431118314 | Z44: 0.1 | AA44: 1 | AB44: 0.617 | AC44: 3.840257202 | AD44: 1.604069555 | AE44: #FFFCF4 | AF44: 14542066 | AG44: 10593968
A45: 228 | B45: 0 | C45: 2 | D45: 50.44 | E45: 1 | F45: 28 | G45: 15 | H45: 6.8 | I45: 7.64 | J45: F8 | K45: 9.53 | L45: 0.87 | M45: 0.532 | N45: 0.013 | O45: 0.04734444444 | P45: 28.25188889 | Q45: 104.9317943 | R45: 2.535464503 | S45: 2.304535497 | T45: 6013.882366 | U45: 8.352456043 | V45: 0.9644352262 | W45: 2.688148328 | X45: 0.09129066107 | Y45: 0.02443609023 | Z45: 0.1 | AA45: 1 | AB45: 0.532 | AC45: 2.535464503 | AD45: 2.688148328 | AE45: #FFFDFA | AF45: 14869743 | AG45: 10856367
A46: 238 | B46: 0 | C46: 2 | D46: 57.43 | E46: -1 | F46: 20 | G46: 2 | H46: 45.9 | I46: 6.25 | J46: F6/F7V | K46: 16.16 | L46: 0.96 | M46: 0.526 | N46: 0.004 | O46: 0.04928611111 | P46: -19.95391667 | Q46: 61.88118812 | R46: 2.292206782 | S46: 2.547793218 | T46: 6032.671329 | U46: 10.45002398 | V46: 0.9614314594 | W46: 2.988101194 | X46: 0.05940594059 | Y46: 0.007604562738 | Z46: 0.1 | AA46: 1 | AB46: 0.526 | AC46: 2.292206782 | AD46: 2.988101194 | AE46: #FFFDFA | AF46: 14869743 | AG46: 10856366
A47: 246 | B47: 0 | C47: 3 | D47: 3.28 | E47: 1 | F47: 56 | G47: 43 | H47: 59.5 | I47: 9.73 | J47: K3 | K47: 18.29 | L47: 1.56 | M47: 0.99 | N47: 0.02 | O47: 0.05091111111 | P47: 56.73319444 | Q47: 54.67468562 | R47: 6.041068527 | S47: -1.201068527 | T47: 4939.68248 | U47: 0.3308053991 | V47: 1.174164539 | W47: 0.7929470986 | X47: 0.08529250957 | Y47: 0.0202020202 | Z47: 0.1 | AA47: 1 | AB47: 0.99 | AC47: 6.041068527 | AD47: 0.7929470986 | AE47: #FFFAE0 | AF47: 13296380 | AG47: 9741752
A48: 249 | B48: 0 | C48: 3 | D48: 5.81 | E48: 1 | F48: 31 | G48: 52 | H48: 12.4 | I48: 8.75 | J48: F8 | K48: 13.24 | L48: 1.03 | M48: 0.552 | N48: 0.022 | O48: 0.05161388889 | P48: 31.87011111 | Q48: 75.52870091 | R48: 4.359439926 | S48: 0.4805600745 | T48: 5952.46482 | U48: 1.55676848 | V48: 0.9743862712 | W48: 1.184607089 | X48: 0.07779456193 | Y48: 0.03985507246 | Z48: 0.1 | AA48: 1 | AB48: 0.552 | AC48: 4.359439926 | AD48: 1.184607089 | AE48: #FFFCF9 | AF48: 14804208 | AG48: 10790575
A49: 255 | B49: 0 | C49: 3 | D49: 10.69 | E49: -1 | F49: 24 | G49: 35 | H49: 17.8 | I49: 7.96 | J49: F2/F3V | K49: 11.84 | L49: 1.16 | M49: 0.421 | N49: 0.001 | O49: 0.05296944444 | P49: -23.41172222 | Q49: 84.45945946 | R49: 3.326758512 | S49: 1.513241488 | T49: 6391.501853 | U49: 4.029921581 | V49: 0.9074549508 | W49: 1.653097414 | X49: 0.09797297297 | Y49: 0.002375296912 | Z49: 0.1 | AA49: 1 | AB49: 0.421 | AC49: 3.326758512 | AD49: 1.653097414 | AE49: #FFFDFF | AF49: 15263212 | AG49: 11118508
A50: 276 | B50: 0 | C50: 3 | D50: 25.9 | E50: 1 | F50: 20 | G50: 39 | H50: 57.3 | I50: 7.49 | J50: G0 | K50: 15.55 | L50: 0.95 | M50: 0.636 | N50: 0.015 | O50: 0.05719444444 | P50: 20.66591667 | Q50: 64.30868167 | R50: 3.448651967 | S50: 1.391348033 | T50: 5713.261144 | U50: 3.601962717 | V50: 1.015182022 | W50: 1.955948623 | X50: 0.06109324759 | Y50: 0.02358490566 | Z50: 0.1 | AA50: 1 | AB50: 0.636 | AC50: 3.448651967 | AD50: 1.955948623 | AE50: #FFFCF3 | AF50: 14476530 | AG50: 10528433
A51: 277 | B51: 0 | C51: 3 | D51: 26.23 | E51: -1 | F51: 36 | G51: 15 | H51: 4.3 | I51: 6.96 | J51: F2V | K51: 15.84 | L51: 0.81 | M51: 0.353 | N51: 0.015 | O51: 0.05728611111 | P51: -35.74880556 | Q51: 63.13131313 | R51: 2.958775886 | S51: 1.881224114 | T51: 6658.544841 | U51: 5.655742724 | V51: 0.871061191 | W51: 1.804438781 | X51: 0.05113636364 | Y51: 0.04249291785 | Z51: 0.1 | AA51: 1 | AB51: 0.353 | AC51: 2.958775886 | AD51: 1.804438781 | AE51: #FFFDFF | AF51: 15590890 | AG51: 11380650
A52: 290 | B52: 0 | C52: 3 | D52: 36.99 | E52: -1 | F52: 31 | G52: 5 | H52: 38.5 | I52: 7.78 | J52: F8/G0V | K52: 15.26 | L52: 1.03 | M52: 0.563 | N52: 0.015 | O52: 0.060275 | P52: -30.90597222 | Q52: 65.53079948 | R52: 3.697772668 | S52: 1.142227332 | T52: 5919.458216 | U52: 2.86345876 | V52: 0.9798194005 | W52: 1.624566655 | X52: 0.06749672346 | Y52: 0.02664298401 | Z52: 0.1 | AA52: 1 | AB52: 0.563 | AC52: 3.697772668 | AD52: 1.624566655 | AE52: #FFFCF8 | AF52: 14738672 | AG52: 10725039
A53: 293 | B53: 0 | C53: 3 | D53: 39.82 | E53: -1 | F53: 57 | G53: 9 | H53: 52 | I53: 8.29 | J53: F6V | K53: 13.14 | L53: 0.97 | M53: 0.488 | N53: 0.01 | O53: 0.06106111111 | P53: -56.83555556 | Q53: 76.10350076 | R53: 3.882976826 | S53: 0.9570231739 | T53: 6155.759366 | U53: 2.414400262 | V53: 0.9422070707 | W53: 1.37942265 | X53: 0.07382039574 | Y53: 0.02049180328 | Z53: 0.1 | AA53: 1 | AB53: 0.488 | AC53: 3.882976826 | AD53: 1.37942265 | AE53: #FFFDFD | AF53: 15000814 | AG53: 10987438
A54: 296 | B54: 0 | C54: 3 | D54: 41.3 | E54: -1 | F54: 28 | G54: 23 | H54: 45.1 | I54: 8.24 | J54: G8V | K54: 25.29 | L54: 1.11 | M54: 0.78 | N54: 0.01 | O54: 0.06147222222 | P54: -27.60413889 | Q54: 39.54132068 | R54: 5.254744147 | S54: -0.4147441467 | T54: 5361.429887 | U54: 0.6824995059 | V54: 1.08180096 | W54: 0.9668206012 | X54: 0.04389086595 | Y54: 0.01282051282 | Z54: 0.1 | AA54: 1 | AB54: 0.78 | AC54: 5.254744147 | AD54: 0.9668206012 | AE54: #FFFBEB | AF54: 13951991 | AG54: 10200756
A55: 299 | B55: 0 | C55: 3 | D55: 44.11 | E55: -1 | F55: 63 | G55: 36 | H55: 2.4 | I55: 8.44 | J55: F5V | K55: 9.67 | L55: 0.86 | M55: 0.508 | N55: 0.012 | O55: 0.06225277778 | P55: -62.39933333 | Q55: 103.4126163 | R55: 3.36713237 | S55: 1.47286763 | T55: 6090.07936 | U55: 3.882818157 | V55: 0.9523685419 | W55: 1.787243018 | X55: 0.08893485005 | Y55: 0.02362204724 | Z55: 0.1 | AA55: 1 | AB55: 0.508 | AC55: 3.36713237 | AD55: 1.787243018 | AE55: #FFFDFB | AF55: 14935279 | AG55: 10921902
A56: 301 | B56: 0 | C56: 3 | D56: 44.37 | E56: -1 | F56: 17 | G56: 20 | H56: 9.5 | I56: 4.55 | J56: B9IVn | K56: 14.31 | L56: 0.92 | M56: -0.047 | N56: 0.003 | O56: 0.062325 | P56: -16.66402778 | Q56: 69.88120196 | R56: 0.3281981688 | S56: 4.511801831 | T56: 9092.895033 | U56: 63.78531909 | V56: 0.637860657 | W56: 3.249466006 | X56: 0.0642907058 | Y56: -0.06382978723 | Z56: 0.1 | AA56: 1 | AB56: -0.047 | AC56: 0.3281981688 | AD56: 3.249466006 | AE56: #F3FEFF | AF56: 16770780 | AG56: 12691616
A57: 305 | B57: 0 | C57: 3 | D57: 53.3 | E57: -1 | F57: 28 | G57: 23 | H57: 37.6 | I57: 7.66 | J57: G5IV | K57: 20.44 | L57: 0.96 | M57: 0.741 | N57: 0.01 | O57: 0.06480555556 | P57: -27.60622222 | Q57: 48.92367906 | R57: 4.212404457 | S57: 0.6275955427 | T57: 5450.514914 | U57: 1.78253562 | V57: 1.064119646 | W57: 1.511819807 | X57: 0.0469667319 | Y57: 0.01349527665 | Z57: 0.1 | AA57: 1 | AB57: 0.741 | AC57: 4.212404457 | AD57: 1.511819807 | AE57: #FFFCED | AF57: 14083061 | AG57: 10266291
A58: 308 | B58: 0 | C58: 3 | D58: 56.05 | E58: 1 | F58: 14 | G58: 22 | H58: 44.1 | I58: 7.09 | J58: F0 | K58: 13.9 | L58: 0.84 | M58: 0.303 | N58: 0.007 | O58: 0.06556944444 | P58: 14.37891667 | Q58: 71.94244604 | R58: 2.805074001 | S58: 2.034925999 | T58: 6875.349874 | U58: 6.515839821 | V58: 0.8435934325 | W58: 1.816567666 | X58: 0.06043165468 | Y58: 0.02310231023 | Z58: 0.1 | AA58: 1 | AB58: 0.303 | AC58: 2.805074001 | AD58: 1.816567666 | AE58: #FFFDFF | AF58: 15787496 | AG58: 11511721
A59: 325 | B59: 0 | C59: 4 | D59: 10.47 | E59: 1 | F59: 39 | G59: 7 | H59: 12.5 | I59: 8.56 | J59: F8 | K59: 14.48 | L59: 1.07 | M59: 0.615 | N59: 0.017 | O59: 0.069575 | P59: 39.12013889 | Q59: 69.06077348 | R59: 4.363842809 | S59: 0.4761571907 | T59: 5770.399769 | U59: 1.550468246 | V59: 1.005129667 | W59: 1.257985461 | X59: 0.07389502762 | Y59: 0.02764227642 | Z59: 0.1 | AA59: 1 | AB59: 0.615 | AC59: 4.363842809 | AD59: 1.257985461 | AE59: #FFFCF5 | AF59: 14542066 | AG59: 10593968
A60: 340 | B60: 0 | C60: 4 | D60: 17.72 | E60: -1 | F60: 43 | G60: 59 | H60: 18 | I60: 8.11 | J60: F6V | K60: 14.91 | L60: 1.01 | M60: 0.484 | N60: 0.009 | O60: 0.07158888889 | P60: -42.01166667 | Q60: 67.06908115 | R60: 3.977388217 | S60: 0.8626117827 | T60: 6169.142134 | U60: 2.213322572 | V60: 0.9401631335 | W60: 1.3150092 | X60: 0.06773977197 | Y60: 0.01859504132 | Z60: 0.1 | AA60: 1 | AB60: 0.484 | AC60: 3.977388217 | AD60: 1.3150092 | AE60: #FFFDFD | AF60: 15000814 | AG60: 10987437
A61: 343 | B61: 0 | C61: 4 | D61: 19.76 | E61: -1 | F61: 16 | G61: 31 | H61: 44 | I61: 5.78 | J61: K0III | K61: 11.29 | L61: 0.92 | M61: 1.084 | N61: 0.007 | O61: 0.07215555556 | P61: -15.47111111 | Q61: 88.57395926 | R61: 1.04346971 | S61: 3.79653029 | T61: 4773.040411 | U61: 33.0074608 | V61: 1.215158369 | W61: 8.483436678 | X61: 0.08148804252 | Y61: 0.006457564576 | Z61: 0.1 | AA61: 1 | AB61: 1.084 | AC61: 1.04346971 | AD61: 8.483436678 | AE61: #FFFADB | AF61: 13034239 | AG61: 9479610
A62: 348 | B62: 0 | C62: 4 | D62: 21.31 | E62: 1 | F62: 12 | G62: 57 | H62: 25.4 | I62: 8.6 | J62: G5 | K62: 16.79 | L62: 1.13 | M62: 0.64 | N62: 0.015 | O62: 0.07258611111 | P62: 12.95705556 | Q62: 59.55926147 | R62: 4.725253481 | S62: 0.1147465193 | T62: 5702.565313 | U62: 1.111472208 | V62: 1.017086115 | W62: 1.090598145 | X62: 0.06730196546 | Y62: 0.0234375 | Z62: 0.1 | AA62: 1 | AB62: 0.64 | AC62: 4.725253481 | AD62: 1.090598145 | AE62: #FFFCF3 | AF62: 14476531 | AG62: 10528433
A63: 350 | B63: 0 | C63: 4 | D63: 23.83 | E63: -1 | F63: 57 | G63: 19 | H63: 22.3 | I63: 10.37 | K63: 21.14 | L63: 1.62 | M63: 1.1 | N63: 0.02 | O63: 0.07328611111 | P63: -56.67713889 | Q63: 47.30368969 | R63: 6.995524915 | S63: -2.155524915 | T63: 4745.557744 | U63: 0.1373377835 | V63: 1.222195643 | W63: 0.5535750138 | X63: 0.07663197729 | Y63: 0.01818181818 | Z63: 0.1 | AA63: 1 | AB63: 1.1 | AC63: 6.995524915 | AD63: 0.5535750138 | AE63: #FFFADA | AF63: 12968703 | AG63: 9479610
A64: 351 | B64: 0 | C64: 4 | D64: 24.63 | E64: -1 | F64: 47 | G64: 4 | H64: 5.3 | I64: 9.8 | J64: K0V | K64: 22.52 | L64: 1.48 | M64: 0.855 | N64: 0.006 | O64: 0.07350833333 | P64: -46.93186111 | Q64: 44.40497336 | R64: 6.562841931 | S64: -1.722841931 | T64: 5200.802416 | U64: 0.2045800251 | V64: 1.115212526 | W64: 0.562531558 | X64: 0.06571936057 | Y64: 0.00701754386 | Z64: 0.1 | AA64: 1 | AB64: 0.855 | AC64: 6.562841931 | AD64: 0.562531558 | AE64: #FFFBE7 | AF64: 13755385 | AG64: 10003893
A65: 357 | B65: 0 | C65: 4 | D65: 30.53 | E65: -1 | F65: 72 | G65: 53 | H65: 50 | I65: 7.33 | J65: F2V | K65: 10.92 | L65: 0.64 | M65: 0.444 | N65: 0.01 | O65: 0.07514722222 | P65: -71.10277778 | Q65: 91.57509158 | R65: 2.521113192 | S65: 2.318886808 | T65: 6307.715478 | U65: 8.463592076 | V65: 0.9195088174 | W65: 2.459739741 | X65: 0.05860805861 | Y65: 0.02252252252 | Z65: 0.1 | AA65: 1 | AB65: 0.444 | AC65: 2.521113192 | AD65: 2.459739741 | AE65: #FFFDFF | AF65: 15197676 | AG65: 11052973
A66: 359 | B66: 0 | C66: 4 | D66: 34.62 | E66: -1 | F66: 76 | G66: 52 | H66: 24.7 | I66: 9.09 | J66: G3/G5III/IV | K66: 17.09 | L66: 0.88 | M66: 0.639 | N66: 0.026 | O66: =B66+C66/60+D66/3600 -> 0.07628333333 | P66: =E66*F66+G66/60+H66/3600 -> -75.12647222 | Q66: =1000/K66 -> 58.51375073 | R66: =I66-5*LOG10(Q66)+5 -> 5.253710314 | S66: =4.84-R66 -> -0.4137103136 | T66: =10^(3.939654-0.395361*M66+0.2082113*M66^2-0.0604097*M66^3) -> 5705.233746 | U66: =10^(0.4*S66) -> 0.6831496884 | V66: =5800/T66 -> 1.016610407 | W66: =V66^2*U66^0.5 -> 0.8542146978 | X66: =L66/K66 -> 0.05149210064 | Y66: =N66/M66 -> 0.0406885759 | Z66: =$Z$1 -> 0.1 | AA66: =IF(ISERROR(AND(X66>0,X66<Z66,Y66<Z66)),0,IF(OR(AND(X66>0,X66<Z66,Y66<Z66),I66<1.5),1,0)) -> 1 | AB66: =IF(AA66=1,M66,"") -> 0.639 | AC66: =IF(AA66=1,R66,"") -> 5.253710314 | AD66: =W66 -> 0.8542146978 | AE66: =getRGB_hex(T66) -> #FFFCF3 | AF66: 14476530 | AG66: 10528433
A67: 377 | B67: 0 | C67: 4 | D67: 41.25 | E67: -1 | F67: 71 | G67: 26 | H67: 12.7 | I67: 5.59 | J67: B8III | K67: 5.7 | L67: 0.53 | M67: -0.1 | N67: 0.003 | O67: 0.078125 | P67: -70.56313889 | Q67: 175.4385965 | R67: -0.6306257216 | S67: 5.470625722 | T67: 9579.274595 | U67: 154.2589208 | V67: 0.6054738219 | W67: 4.553191182 | X67: 0.09298245614 | Y67: -0.03 | Z67: 0.1 | AA67: 1 | AB67: -0.1 | AC67: -0.6306257216 | AD67: 4.553191182 | AE67: #F1FEFF | AF67: =getRGB_VBA(T67,0.8) -> 16770778 | AG67: =getRGB_VBA(T67,0.4) -> 12888223
A68: 378 | B68: 0 | C68: 4 | D68: 41.26 | E68: 1 | F68: 14 | G68: 57 | H68: 55.2 | I68: 7.37 | J68: F5IV | K68: 11.46 | L68: 0.84 | M68: 0.422 | N68: 0.01 | O68: 0.07812777778 | P68: 14.96533333 | Q68: 87.2600349 | R68: 2.665923088 | S68: 2.174076912 | T68: 6387.793715 | U68: 7.406802504 | V68: 0.9079817319 | W68: 2.243724882 | X68: 0.07329842932 | Y68: 0.02369668246 | Z68: 0.1 | AA68: 1 | AB68: 0.422 | AC68: 2.665923088 | AD68: 2.243724882 | AE68: #FFFDFF | AF68: 15263212 | AG68: 11118508
A69: 379 | B69: 0 | C69: 4 | D69: 41.84 | E69: 1 | F69: 67 | G69: 9 | H69: 59 | I69: 5.68 | J69: K1III | K69: 10.3 | L69: 0.58 | M69: 1.051 | N69: 0.005 | O69: 0.07828888889 | P69: 67.16638889 | Q69: 97.08737864 | R69: 0.7441861235 | S69: 4.095813876 | T69: 4830.457048 | U69: 43.48360586 | V69: 1.200714537 | W69: 9.506974145 | X69: 0.05631067961 | Y69: 0.00475737393 | Z69: 0.1 | AA69: 1 | AB69: 1.051 | AC69: 0.7441861235 | AD69: 9.506974145 | AE69: #FFFADD | AF69: 13099774 | AG69: 9545145
A70: 400 | B70: 0 | C70: 4 | D70: 56.08 | E70: 1 | F70: 23 | G70: 16 | H70: 10.7 | I70: 7.82 | J70: G9V | K70: 39.06 | L70: 0.93 | M70: 0.755 | N70: 0.013 | O70: 0.08224444444 | P70: 23.26963889 | Q70: 25.6016385 | R70: 5.778661195 | S70: -0.9386611948 | T70: 5418.057836 | U70: 0.4212457402 | V70: 1.070494294 | W70: 0.7437662628 | X70: 0.02380952381 | Y70: 0.01721854305 | Z70: 0.1 | AA70: 1 | AB70: 0.755 | AC70: 5.778661195 | AD70: 0.7437662628 | AE70: #FFFBEC | AF70: 14083062 | AG70: 10266291
A71: 404 | B71: 0 | C71: 4 | D71: 57.51 | E71: 1 | F71: 45 | G71: 40 | H71: 26.2 | I71: 7.47 | J71: F8V | K71: 14.53 | L71: 1.21 | M71: 0.55 | N71: 0.015 | O71: 0.08264166667 | P71: 45.67394444 | Q71: 68.82312457 | R71: 3.281328071 | S71: 1.558671929 | T71: 5958.524157 | U71: 4.202123106 | V71: 0.9733953991 | W71: 1.942285035 | X71: 0.08327598073 | Y71: 0.02727272727 | Z71: 0.1 | AA71: 1 | AB71: 0.55 | AC71: 3.281328071 | AD71: 1.942285035 | AE71: #FFFCF9 | AF71: 14804208 | AG71: 10790575
A72: 407 | B72: 0 | C72: 4 | D72: 58.63 | E72: -1 | F72: 70 | G72: 12 | H72: 43.9 | I72: 8.13 | J72: G5V | K72: 22.09 | L72: 0.71 | M72: 0.71 | N72: 0.015 | O72: 0.08295277778 | P72: -69.78780556 | Q72: 45.26935265 | R72: 4.850978579 | S72: -0.01097857936 | T72: 5524.407551 | U72: 0.9899393055 | V72: 1.049886336 | W72: 1.096702544 | X72: 0.03214124038 | Y72: 0.02112676056 | Z72: 0.1 | AA72: 1 | AB72: 0.71 | AC72: 4.850978579 | AD72: 1.096702544 | AE72: #FFFCEF | AF72: 14214133 | AG72: 10397362
A73: 409 | B73: 0 | C73: 4 | D73: 59.06 | E73: -1 | F73: 70 | G73: 29 | H73: 32.7 | I73: 8.41 | J73: F5V | K73: 8.49 | L73: 0.77 | M73: 0.461 | N73: 0.015 | O73: 0.08307222222 | P73: -69.50758333 | Q73: 117.7856302 | R73: 3.054538451 | S73: 1.785461549 | T73: 6247.746252 | U73: 5.178269145 | V73: 0.9283347573 | W73: 1.961108092 | X73: 0.09069493522 | Y73: 0.03253796095 | Z73: 0.1 | AA73: 1 | AB73: 0.461 | AC73: 3.054538451 | AD73: 1.961108092 | AE73: #FFFDFE | AF73: 15131885 | AG73: 11052973
A74: 410 | B74: 0 | C74: 5 | D74: 1.13 | E74: 1 | F74: 27 | G74: 40 | H74: 29.3 | I74: 6.47 | J74: G8II | K74: 7.63 | L74: 0.76 | M74: 0.946 | N74: 0.007 | O74: 0.08364722222 | P74: 27.67480556 | Q74: 131.061599 | R74: 0.8826226898 | S74: 3.95737731 | T74: 5021.481158 | U74: 38.2781486 | V74: 1.155037691 | W74: 8.254062903 | X74: 0.0996068152 | Y74: 0.007399577167 | Z74: 0.1 | AA74: 1 | AB74: 0.946 | AC74: 0.8826226898 | AD74: 8.254062903 | AE74: #FFFAE2 | AF74: 13427451 | AG74: 9807287
A75: 413 | B75: 0 | C75: 5 | D75: 2.48 | E75: -1 | F75: 36 | G75: 0 | H75: 55 | I75: 7.73 | J75: G0V | K75: 19.78 | L75: 0.87 | M75: 0.537 | N75: 0.005 | O75: 0.08402222222 | P75: -35.98472222 | Q75: 50.55611729 | R75: 4.211131436 | S75: 0.6288685637 | T75: 5998.354578 | U75: 1.784626861 | V75: 0.9669318351 | W75: 1.249008607 | X75: 0.04398382204 | Y75: 0.009310986965 | Z75: 0.1 | AA75: 1 | AB75: 0.537 | AC75: 4.211131436 | AD75: 1.249008607 | AE75: #FFFDF9 | AF75: 14804207 | AG75: 10790575
A76: 420 | B76: 0 | C76: 5 | D76: 7.6 | E76: -1 | F76: 52 | G76: 9 | H76: 5.1 | I76: 7.53 | J76: G0V | K76: 23.9 | L76: 0.85 | M76: 0.577 | N76: 0.006 | O76: 0.08544444444 | P76: -51.84858333 | Q76: 41.84100418 | R76: 4.421989505 | S76: 0.4180104953 | T76: 5878.216501 | U76: 1.469617105 | V76: 0.9866938381 | W76: 1.180230765 | X76: 0.03556485356 | Y76: 0.01039861352 | Z76: 0.1 | AA76: 1 | AB76: 0.577 | AC76: 4.421989505 | AD76: 1.180230765 | AE76: #FFFCF7 | AF76: 14673137 | AG76: 10725040
A77: 425 | B77: 0 | C77: 5 | D77: 9.71 | E77: -1 | F77: 62 | G77: 50 | H77: 43 | I77: 8.14 | J77: G0V | K77: 14.25 | L77: 0.83 | M77: 0.593 | N77: 0.011 | O77: 0.08603055556 | P77: -61.15472222 | Q77: 70.1754386 | R77: 3.909074322 | S77: 0.9309256783 | T77: 5832.102084 | U77: 2.357058011 | V77: 0.9944956239 | W77: 1.518416409 | X77: 0.05824561404 | Y77: 0.01854974705 | Z77: 0.1 | AA77: 1 | AB77: 0.593 | AC77: 3.909074322 | AD77: 1.518416409 | AE77: #FFFCF6 | AF77: 14607601 | AG77: 10659504
A78: 428 | B78: 0 | C78: 5 | D78: 10.16 | E78: 1 | F78: 45 | G78: 47 | H78: 13 | I78: 9.95 | J78: M2 | K78: 86.98 | L78: 1.41 | M78: 1.472 | N78: 0.019 | O78: 0.08615555556 | P78: 45.78694444 | Q78: 11.49689584 | R78: 9.647097017 | S78: -4.807097017 | T78: 4131.943915 | U78: 0.01194431349 | V78: 1.403697659 | W78: 0.2153415069 | X78: 0.01621062313 | Y78: 0.0129076087 | Z78: 0.1 | AA78: 1 | AB78: 1.472 | AC78: 9.647097017 | AD78: 0.2153415069 | AE78: #FFF7C5 | AF78: 11722751 | AG78: 8561603
A79: 432 | B79: 0 | C79: 5 | D79: 13 | E79: 1 | F79: 35 | G79: 34 | H79: 16 | I79: 6.88 | J79: A2 | K79: 10.35 | L79: 0.81 | M79: 0.174 | N79: 0.007 | O79: 0.08694444444 | P79: 35.57111111 | Q79: 96.61835749 | R79: 1.954701749 | S79: 2.885298251 | T79: 7530.897759 | U79: 14.25999261 | V79: 0.7701605022 | W79: 2.239866499 | X79: 0.07826086957 | Y79: 0.04022988506 | Z79: 0.1 | AA79: 1 | AB79: 0.174 | AC79: 1.954701749 | AD79: 2.239866499 | AE79: #FCFEFF | AF79: 16311779 | AG79: 11904934
A80: 436 | B80: 0 | C80: 5 | D80: 17.87 | E80: -1 | F80: 67 | G80: 49 | H80: 52.4 | I80: 8.49 | J80: K5V | K80: 62.48 | L80: 0.82 | M80: 1.076 | N80: 0.018 | O80: 0.08829722222 | P80: -66.16877778 | Q80: 16.00512164 | R80: 7.468705104 | S80: -2.628705104 | T80: 4786.865233 | U80: 0.08882147036 | V80: 1.211648901 | W80: 0.4375347634 | X80: 0.01312419974 | Y80: 0.01672862454 | Z80: 0.1 | AA80: 1 | AB80: 1.076 | AC80: 7.468705104 | AD80: 0.4375347634 | AE80: #FFFADB | AF80: 13034239 | AG80: 9545146
A81: 439 | B81: 0 | C81: 5 | D81: 20.29 | E81: -1 | F81: 37 | G81: 21 | H81: 6.1 | I81: 8.56 | J81: M2V | K81: 229.33 | L81: 1.08 | M81: 1.462 | N81: 0.026 | O81: 0.08896944444 | P81: -36.64830556 | Q81: 4.360528496 | R81: 10.36230436 | S81: -5.522304355 | T81: 4148.578717 | U81: 0.006181277739 | V81: 1.398069169 | W81: 0.1536726024 | X81: 0.004709370776 | Y81: 0.01778385773 | Z81: 0.1 | AA81: 1 | AB81: 1.462 | AC81: 10.36230436 | AD81: 0.1536726024 | AE81: #FFF7C6 | AF81: 11722751 | AG81: 8561602
A82: 443 | B82: 0 | C82: 5 | D82: 20.15 | E82: -1 | F82: 5 | G82: 42 | H82: 28.2 | I82: 4.61 | J82: K1III | K82: 25.38 | L82: 1.05 | M82: 1.029 | N82: 0.037 | O82: 0.08893055556 | P82: -4.292166667 | Q82: 39.40110323 | R82: 1.632458089 | S82: 3.207541911 | T82: 4869.349655 | U82: 19.18742806 | V82: 1.191124156 | W82: 6.214732598 | X82: 0.04137115839 | Y82: 0.03595724004 | Z82: 0.1 | AA82: 1 | AB82: 1.029 | AC82: 1.632458089 | AD82: 6.214732598 | AE82: #FFFADE | AF82: 13165309 | AG82: 9610681
A83: 445 | B83: 0 | C83: 5 | D83: 21.63 | E83: -1 | F83: 56 | G83: 57 | H83: 20.2 | I83: 7.42 | J83: A1Vs | K83: 9.55 | L83: 0.76 | M83: 0.191 | N83: 0.008 | O83: 0.08934166667 | P83: -55.04438889 | Q83: 104.7120419 | R83: 2.320016858 | S83: 2.519983142 | T83: 7435.580477 | U83: 10.18575573 | V83: 0.7800332493 | W83: 1.941882101 | X83: 0.07958115183 | Y83: 0.04188481675 | Z83: 0.1 | AA83: 1 | AB83: 0.191 | AC83: 2.320016858 | AD83: 1.941882101 | AE83: #FCFEFF | AF83: 16246244 | AG83: 11839398
A84: 459 | B84: 0 | C84: 5 | D84: 28.35 | E84: -1 | F84: 61 | G84: 13 | H84: 32.4 | I84: 8.82 | J84: G5V | K84: 18.57 | L84: 0.95 | M84: 0.666 | N84: 0.016 | O84: 0.09120833333 | P84: -60.77433333 | Q84: 53.85029618 | R84: 5.164059519 | S84: -0.3240595187 | T84: 5634.448567 | U84: 0.7419526538 | V84: 1.029382012 | W84: 0.912727731 | X84: 0.05115778137 | Y84: 0.02402402402 | Z84: 0.1 | AA84: 1 | AB84: 0.666 | AC84: 5.164059519 | AD84: 0.912727731 | AE84: #FFFCF2 | AF84: 14345459 | AG84: 10462898
A85: 460 | B85: 0 | C85: 5 | D85: 28.74 | E85: 1 | F85: 22 | G85: 13 | H85: 28.8 | I85: 9.13 | J85: G5 | K85: 22.2 | L85: 1.14 | M85: 0.735 | N85: 0.025 | O85: 0.09131666667 | P85: 22.22466667 | Q85: 45.04504505 | R85: 5.861764872 | S85: -1.021764872 | T85: 5464.595427 | U85: 0.3902060971 | V85: 1.06137775 | W85: 0.7036990812 | X85: 0.05135135135 | Y85: 0.03401360544 | Z85: 0.1 | AA85: 1 | AB85: 0.735 | AC85: 5.861764872 | AD85: 0.7036990812 | AE85: #FFFCEE | AF85: 14148597 | AG85: 10331827
A86: 461 | B86: 0 | C86: 5 | D86: 29.06 | E86: 1 | F86: 34 | G86: 6 | H86: 20.4 | I86: 7.86 | J86: F8 | K86: 11.04 | L86: 0.91 | M86: 0.494 | N86: 0.014 | O86: 0.09140555556 | P86: 34.10566667 | Q86: 90.57971014 | R86: 3.074845367 | S86: 1.765154633 | T86: 6135.841054 | U86: 5.082318209 | V86: 0.9452656855 | W86: 2.014367528 | X86: 0.08242753623 | Y86: 0.02834008097 | Z86: 0.1 | AA86: 1 | AB86: 0.494 | AC86: 3.074845367 | AD86: 2.014367528 | AE86: #FFFDFC | AF86: 15000814 | AG86: 10921902
A87: 462 | B87: 0 | C87: 5 | D87: 31.11 | E87: -1 | F87: 9 | G87: 37 | H87: 2.3 | I87: 7.13 | J87: F5 | K87: 19.81 | L87: 0.94 | M87: 0.446 | N87: 0.008 | O87: 0.091975 | P87: -8.382694444 | Q87: 50.47955578 | R87: 3.614422378 | S87: 1.225577622 | T87: 6300.575406 | U87: 3.091939937 | V87: 0.9205508428 | W87: 1.490085142 | X87: 0.04745078243 | Y87: 0.01793721973 | Z87: 0.1 | AA87: 1 | AB87: 0.446 | AC87: 3.614422378 | AD87: 1.490085142 | AE87: #FFFDFF | AF87: 15197677 | AG87: 11052973
A88: 473 | B88: 0 | C88: 5 | D88: 40.28 | E88: 1 | F88: 45 | G88: 48 | H88: 44.8 | I88: 8.2 | J88: K2 | K88: 85.1 | L88: 2.74 | M88: 1.41 | N88: 0.014 | O88: 0.09452222222 | P88: 45.81244444 | Q88: 11.75088132 | R88: 7.8496478 | S88: -3.0096478 | T88: 4234.460986 | U88: 0.06253755241 | V88: 1.369713883 | W88: 0.4691699146 | X88: 0.03219741481 | Y88: 0.009929078014 | Z88: 0.1 | AA88: 1 | AB88: 1.41 | AC88: 7.8496478 | AD88: 0.4691699146 | AE88: #FFF7C9 | AF88: 11919359 | AG88: 8692673
A89: 475 | B89: 0 | C89: 5 | D89: 41.6 | E89: 1 | F89: 58 | G89: 18 | H89: 49.2 | I89: 8.22 | J89: G0 | K89: 21.03 | L89: 1.06 | M89: 0.636 | N89: 0.015 | O89: 0.09488888889 | P89: 58.31366667 | Q89: 47.55111745 | R89: 4.834196363 | S89: 0.005803636568 | T89: 5713.261144 | U89: 1.005359659 | V89: 1.015182022 | W89: 1.033352664 | X89: 0.0504041845 | Y89: 0.02358490566 | Z89: 0.1 | AA89: 1 | AB89: 0.636 | AC89: 4.834196363 | AD89: 1.033352664 | AE89: #FFFCF3 | AF89: 14476530 | AG89: 10528433
A90: 476 | B90: 0 | C90: 5 | D90: 41.94 | E90: 1 | F90: 13 | G90: 23 | H90: 46.6 | I90: 5.55 | J90: G5III | K90: 8.75 | L90: 0.8 | M90: 0.901 | N90: 0.001 | O90: 0.09498333333 | P90: 13.39627778 | Q90: 114.2857143 | R90: 0.2600402651 | S90: 4.579959735 | T90: 5108.274781 | U90: 67.91784445 | V90: 1.135412688 | W90: 10.62427817 | X90: 0.09142857143 | Y90: 0.001109877913 | Z90: 0.1 | AA90: 1 | AB90: 0.901 | AC90: 0.2600402651 | AD90: 10.62427817 | AE90: #FFFBE4 | AF90: 13558778 | AG90: 9938358
A91: 490 | B91: 0 | C91: 5 | D91: 52.47 | E91: -1 | F91: 41 | G91: 45 | H91: 10.4 | I91: 7.51 | J91: G0V | K91: 24.85 | L91: 0.92 | M91: 0.595 | N91: 0.008 | O91: 0.09790833333 | P91: -40.24711111 | Q91: 40.24144869 | R91: 4.486631965 | S91: 0.3533680347 | T91: 5826.41234 | U91: 1.384672968 | V91: 0.9954667918 | W91: 1.166076815 | X91: 0.0370221328 | Y91: 0.01344537815 | Z91: 0.1 | AA91: 1 | AB91: 0.595 | AC91: 4.486631965 | AD91: 1.166076815 | AE91: #FFFCF6 | AF91: 14607601 | AG91: 10659504
A92: 493 | B92: 0 | C92: 5 | D92: 54.84 | E92: 1 | F92: 18 | G92: 14 | H92: 7.3 | I92: 7.45 | J92: F8 | K92: 26.24 | L92: 0.82 | M92: 0.596 | N92: 0.01 | O92: 0.09856666667 | P92: 18.23536111 | Q92: 38.1097561 | R92: 4.544819154 | S92: 0.2951808465 | T92: 5823.573591 | U92: 1.312418485 | V92: 0.9959520403 | W92: 1.136352366 | X92: 0.03125 | Y92: 0.01677852349 | Z92: 0.1 | AA92: 1 | AB92: 0.596 | AC92: 4.544819154 | AD92: 1.136352366 | AE92: #FFFCF6 | AF92: 14607601 | AG92: 10659504
A93: 494 | B93: 0 | C93: 5 | D93: 55.13 | E93: -1 | F93: 68 | G93: 48 | H93: 41.9 | I93: 8.99 | J93: F8V | K93: 12.99 | L93: 0.94 | M93: 0.585 | N93: 0.017 | O93: 0.09864722222 | P93: -67.18836111 | Q93: 76.98229407 | R93: 4.558045755 | S93: 0.2819542446 | T93: 5855.025718 | U93: 1.296527396 | V93: 0.9906019682 | W93: 1.117349971 | X93: 0.07236335643 | Y93: 0.02905982906 | Z93: 0.1 | AA93: 1 | AB93: 0.585 | AC93: 4.558045755 | AD93: 1.117349971 | AE93: #FFFCF6 | AF93: 14673137 | AG93: 10659504
A94: 495 | B94: 0 | C94: 5 | D94: 55.56 | E94: 1 | F94: 18 | G94: 4 | H94: 34.4 | I94: 8.58 | J94: K0... | K94: 25.77 | L94: 2.07 | M94: 0.92 | N94: 0.01 | O94: 0.09876666667 | P94: 18.07622222 | Q94: 38.8048118 | R94: 5.635572093 | S94: -0.7955720928 | T94: 5071.210242 | U94: 0.4805860528 | V94: 1.14371121 | W94: 0.9068142515 | X94: 0.08032596042 | Y94: 0.01086956522 | Z94: 0.1 | AA94: 1 | AB94: 0.92 | AC94: 5.635572093 | AD94: 0.9068142515 | AE94: #FFFBE3 | AF94: 13558522 | AG94: 9872823
A95: 510 | B95: 0 | C95: 6 | D95: 8.02 | E95: 1 | F95: 9 | G95: 42 | H95: 53.9 | I95: 7.8 | J95: F5 | K95: 11.07 | L95: 1 | M95: 0.501 | N95: 0.015 | O95: 0.1022277778 | P95: 9.714972222 | Q95: 90.33423668 | R95: 3.020738104 | S95: 1.819261896 | T95: 6112.836404 | U95: 5.342010757 | V95: 0.9488230367 | W95: 2.080763975 | X95: 0.09033423668 | Y95: 0.02994011976 | Z95: 0.1 | AA95: 1 | AB95: 0.501 | AC95: 3.020738104 | AD95: 2.080763975 | AE95: #FFFDFC | AF95: 14935278 | AG95: 10921902
A96: 518 | B96: 0 | C96: 6 | D96: 15.54 | E96: 1 | F96: 58 | G96: 26 | H96: 12.1 | I96: 5.98 | J96: G5V | K96: 49.3 | L96: 1.05 | M96: 0.687 | N96: 0 | O96: 0.1043166667 | P96: 58.43669444 | Q96: 20.28397566 | R96: 4.444234596 | S96: 0.3957654036 | T96: 5581.139369 | U96: 1.439813235 | V96: 1.039214328 | W96: 1.29587566 | X96: 0.02129817444 | Y96: 0 | Z96: 0.1 | AA96: 1 | AB96: 0.687 | AC96: 4.444234596 | AD96: 1.29587566 | AE96: #FFFCF0 | AF96: 14279924 | AG96: 10397362
A97: 522 | B97: 0 | C97: 6 | D97: 18.66 | E97: -1 | F97: 49 | G97: 4 | H97: 30.3 | I97: 5.7 | J97: G1IV... | K97: 39 | L97: 0.64 | M97: 0.519 | N97: 0.011 | O97: 0.1051833333 | P97: -48.92491667 | Q97: 25.64102564 | R97: 3.655323035 | S97: 1.184676965 | T97: 6054.809282 | U97: 2.977630374 | V97: 0.9579162166 | W97: 1.583399283 | X97: 0.01641025641 | Y97: 0.02119460501 | Z97: 0.1 | AA97: 1 | AB97: 0.519 | AC97: 3.655323035 | AD97: 1.583399283 | AE97: #FFFDFB | AF97: 14869743 | AG97: 10856366
A98: 523 | B98: 0 | C98: 6 | D98: 18.9 | E98: -1 | F98: 65 | G98: 50 | H98: 21.1 | I98: 12.17 | J98: M4 | K98: 56.92 | L98: 2.73 | M98: 1.55 | N98: 0.015 | O98: 0.10525 | P98: -64.16080556 | Q98: 17.56851722 | R98: 10.94632446 | S98: -6.106324457 | T98: 4000.496794 | U98: 0.003609692584 | V98: 1.449819935 | W98: 0.1262883364 | X98: 0.047962052 | Y98: 0.009677419355 | Z98: 0.1 | AA98: 1 | AB98: 1.55 | AC98: 10.94632446 | AD98: 0.1262883364 | AE98: #FFF6C0 | AF98: 11394815 | AG98: 8299205
A99: 525 | B99: 0 | C99: 6 | D99: 20.14 | E99: 1 | F99: 40 | G99: 53 | H99: 55.4 | I99: 6.93 | J99: K0 | K99: 8.6 | L99: 0.73 | M99: 1.086 | N99: 0.009 | O99: 0.1055944444 | P99: 40.89872222 | Q99: 116.2790698 | R99: 1.602492256 | S99: 3.237507744 | T99: 4769.593111 | U99: 19.72436804 | V99: 1.216036644 | W99: 6.567421238 | X99: 0.08488372093 | Y99: 0.008287292818 | Z99: 0.1 | AA99: 1 | AB99: 1.086 | AC99: 1.602492256 | AD99: 6.567421238 | AE99: #FFFADB | AF99: 13034239 | AG99: 9479610
A100: 544 | B100: 0 | C100: 6 | D100: 36.53 | E100: 1 | F100: 29 | G100: 1 | H100: 19 | I100: 6.07 | J100: K0V | K100: 72.98 | L100: 0.75 | M100: 0.752 | N100: 0.003 | O100: 0.1101472222 | P100: 29.02194444 | Q100: 13.70238421 | R100: 5.386019295 | S100: -0.5460192951 | T100: 5424.966765 | U100: 0.6047728441 | V100: 1.069130974 | W100: 0.8889103528 | X100: 0.01027678816 | Y100: 0.003989361702 | Z100: 0.1 | AA100: 1 | AB100: 0.752 | AC100: 5.386019295 | AD100: 0.8889103528 | AE100: #FFFBED | AF100: 14083062 | AG100: 10266291
A101: 560 | B101: 0 | C101: 6 | D101: 50.02 | E101: -1 | F101: 23 | G101: 6 | H101: 26.7 | I101: 6.19 | J101: F2IV | K101: 25.59 | L101: 0.75 | M101: 0.386 | N101: 0.007 | O101: 0.1138944444 | P101: -22.89258333 | Q101: 39.07776475 | R101: 3.230351429 | S101: 1.609648571 | T101: 6525.187486 | U101: 4.404122885 | V101: 0.8888633487 | W101: 1.658057975 | X101: 0.02930832356 | Y101: 0.01813471503 | Z101: 0.1 | AA101: 1 | AB101: 0.386 | AC101: 3.230351429 | AD101: 1.658057975 | AE101: #FFFDFF | AF101: 15394283 | AG101: 11249579
A102: 569 | B102: 0 | C102: 6 | D102: 53.95 | E102: -1 | F102: 3 | G102: 37 | H102: 32.6 | I102: 8.23 | J102: G0 | K102: 18.71 | L102: 1.05 | M102: 0.58 | N102: 0.012 | O102: 0.1149861111 | P102: -2.374277778 | Q102: 53.44735436 | R102: 4.590368938 | S102: 0.2496310625 | T102: 5869.488336 | U102: 1.258497697 | V102: 0.9881610913 | W102: 1.095422638 | X102: 0.05611972207 | Y102: 0.02068965517 | Z102: 0.1 | AA102: 1 | AB102: 0.58 | AC102: 4.590368938 | AD102: 1.095422638 | AE102: #FFFCF7 | AF102: 14673137 | AG102: 10725040
A103: 577 | B103: 0 | C103: 7 | D103: 0.54 | E103: 1 | F103: 32 | G103: 52 | H103: 13 | I103: 9.61 | J103: G5 | K103: 15.97 | L103: 1.47 | M103: 0.761 | N103: 0.042 | O103: 0.1168166667 | P103: 32.87027778 | Q103: 62.61740764 | R103: 5.626524581 | S103: -0.7865245807 | T103: 5404.314208 | U103: 0.4846075408 | V103: 1.073216652 | W103: 0.8018070838 | X103: 0.09204758923 | Y103: 0.05519053876 | Z103: 0.1 | AA103: 1 | AB103: 0.761 | AC103: 5.626524581 | AD103: 0.8018070838 | AE103: #FFFBEC | AF103: 14017526 | AG103: 10266292
A104: 596 | B104: 0 | C104: 7 | D104: 13.29 | E104: -1 | F104: 76 | G104: 43 | H104: 51.3 | I104: 7.56 | J104: F5IV-V | K104: 11.92 | L104: 0.61 | M104: 0.419 | N104: 0.013 | O104: 0.1203583333 | P104: -75.26908333 | Q104: 83.89261745 | R104: 2.941381277 | S104: 1.898618723 | T104: 6398.936257 | U104: 5.747083263 | V104: 0.9064006528 | W104: 1.96953709 | X104: 0.05117449664 | Y104: 0.03102625298 | Z104: 0.1 | AA104: 1 | AB104: 0.419 | AC104: 2.941381277 | AD104: 1.96953709 | AE104: #FFFDFF | AF104: 15263212 | AG104: 11184044
A105: 599 | B105: 0 | C105: 7 | D105: 15.43 | E105: -1 | F105: 41 | G105: 53 | H105: 22.6 | I105: 8.23 | J105: F8/G0V | K105: 17.18 | L105: 1 | M105: 0.599 | N105: 0.002 | O105: 0.1209527778 | P105: -40.11038889 | Q105: 58.20721769 | R105: 4.405115797 | S105: 0.4348842025 | T105: 5815.081719 | U105: 1.492635206 | V105: 0.9974064476 | W105: 1.21540546 | X105: 0.05820721769 | Y105: 0.003338898164 | Z105: 0.1 | AA105: 1 | AB105: 0.599 | AC105: 4.405115797 | AD105: 1.21540546 | AE105: #FFFCF6 | AF105: 14607601 | AG105: 10659504
A106: 606 | B106: 0 | C106: 7 | D106: 22.41 | E106: -1 | F106: 25 | G106: 21 | H106: 22.8 | I106: 7.06 | J106: F5V | K106: 20.63 | L106: 0.91 | M106: 0.463 | N106: 0.015 | O106: 0.1228916667 | P106: -24.64366667 | Q106: 48.47309743 | R106: 3.63249614 | S106: 1.20750386 | T106: 6240.797206 | U106: 3.040895837 | V106: 0.9293684458 | W106: 1.506179104 | X106: 0.04411051866 | Y106: 0.03239740821 | Z106: 0.1 | AA106: 1 | AB106: 0.463 | AC106: 3.63249614 | AD106: 1.506179104 | AE106: #FFFDFE | AF106: 15131885 | AG106: 11052973
A107: 607 | B107: 0 | C107: 7 | D107: 22.48 | E107: 1 | F107: 26 | G107: 27 | H107: 3.2 | I107: 7.33 | J107: K1IV | K107: 9.37 | L107: 0.84 | M107: 1.011 | N107: 0.01 | O107: 0.1229111111 | P107: 26.45088889 | Q107: 106.7235859 | R107: 2.188697954 | S107: 2.651302046 | T107: 4901.578269 | U107: 11.49531346 | V107: 1.183292336 | W107: 4.747276335 | X107: 0.08964781217 | Y107: 0.009891196835 | Z107: 0.1 | AA107: 1 | AB107: 1.011 | AC107: 2.188697954 | AD107: 4.747276335 | AE107: #FFFADF | AF107: 13230845 | AG107: 9676217
A108: 616 | B108: 0 | C108: 7 | D108: 32.34 | E108: -1 | F108: 23 | G108: 49 | H108: 8.2 | I108: 8.7 | J108: K0V | K108: 30.76 | L108: 1.21 | M108: 0.798 | N108: 0.003 | O108: 0.12565 | P108: -22.18105556 | Q108: 32.50975293 | R108: 6.139931656 | S108: -1.299931656 | T108: 5321.662622 | U108: 0.3020141825 | V108: 1.08988495 | W108: 0.652792235 | X108: 0.03933680104 | Y108: 0.003759398496 | Z108: 0.1 | AA108: 1 | AB108: 0.798 | AC108: 6.139931656 | AD108: 0.652792235 | AE108: #FFFBEA | AF108: 13886455 | AG108: 10135220
A109: 617 | B109: 0 | C109: 7 | D109: 32.79 | E109: 1 | F109: 32 | G109: 0 | H109: 31.6 | I109: 8.5 | J109: F5 | K109: 10.08 | L109: 0.93 | M109: 0.451 | N109: 0.019 | O109: 0.125775 | P109: 32.00877778 | Q109: 99.20634921 | R109: 3.517302661 | S109: 1.322697339 | T109: 6282.824972 | U109: 3.381262872 | V109: 0.9231516119 | W109: 1.567059666 | X109: 0.09226190476 | Y109: 0.0421286031 | Z109: 0.1 | AA109: 1 | AB109: 0.451 | AC109: 3.517302661 | AD109: 1.567059666 | AE109: #FFFDFF | AF109: 15131885 | AG109: 11052973
A110: 626 | B110: 0 | C110: 7 | D110: 37.94 | E110: 1 | F110: 40 | G110: 8 | H110: 52.8 | I110: 6.73 | J110: G5 | K110: 10.14 | L110: 0.73 | M110: 0.951 | N110: 0.007 | O110: 0.1272055556 | P110: 40.148 | Q110: 98.61932939 | R110: 1.760189775 | S110: 3.079810225 | T110: 5012.041968 | U110: 17.0578421 | V110: 1.157212976 | W110: 5.530808662 | X110: 0.07199211045 | Y110: 0.007360672976 | Z110: 0.1 | AA110: 1 | AB110: 0.951 | AC110: 1.760189775 | AD110: 5.530808662 | AE110: #FFFAE2 | AF110: 13427451 | AG110: 9807287
A111: 630 | B111: 0 | C111: 7 | D111: 40.51 | E111: 1 | F111: 39 | G111: 2 | H111: 5.7 | I111: 8.01 | J111: F5 | K111: 9.58 | L111: 0.89 | M111: 0.456 | N111: 0.012 | O111: 0.1279194444 | P111: 39.03491667 | Q111: 104.3841336 | R111: 2.916827545 | S111: 1.923172455 | T111: 6265.215773 | U111: 5.878533289 | V111: 0.9257462488 | W111: 2.077870191 | X111: 0.09290187891 | Y111: 0.02631578947 | Z111: 0.1 | AA111: 1 | AB111: 0.456 | AC111: 2.916827545 | AD111: 2.077870191 | AE111: #FFFDFF | AF111: 15131885 | AG111: 11052973
A112: 631 | B112: 0 | C112: 7 | D112: 40.92 | E112: -1 | F112: 65 | G112: 55 | H112: 56.2 | I112: 6.83 | J112: K1/K2III | K112: 7.84 | L112: 0.65 | M112: 1.158 | N112: 0.007 | O112: 0.1280333333 | P112: -64.06772222 | Q112: 127.5510204 | R112: 1.301580313 | S112: 3.538419687 | T112: 4647.543292 | U112: 26.02362994 | V112: 1.247971161 | W112: 7.944984176 | X112: 0.08290816327 | Y112: 0.006044905009 | Z112: 0.1 | AA112: 1 | AB112: 1.158 | AC112: 1.301580313 | AD112: 7.944984176 | AE112: #FFF9D7 | AF112: 12771839 | AG112: 9348284
A113: 636 | B113: 0 | C113: 7 | D113: 46.86 | E113: -1 | F113: 22 | G113: 30 | H113: 30.5 | I113: 5.93 | J113: A1V | K113: 12.45 | L113: 0.74 | M113: 0.141 | N113: 0.006 | O113: 0.1296833333 | P113: -21.49152778 | Q113: 80.32128514 | R113: 1.405846757 | S113: 3.434153243 | T113: 7724.639243 | U113: 23.64075255 | V113: 0.7508441258 | W113: 2.741133728 | X113: 0.059437751 | Y113: 0.04255319149 | Z113: 0.1 | AA113: 1 | AB113: 0.141 | AC113: 1.405846757 | AD113: 2.741133728 | AE113: #FAFEFF | AF113: 16508386 | AG113: 12036005
A114: 641 | B114: 0 | C114: 7 | D114: 51.88 | E114: 1 | F114: 55 | G114: 34 | H114: 37.3 | I114: 7.82 | J114: G0 | K114: 21.83 | L114: 0.84 | M114: 0.61 | N114: 0.01 | O114: 0.1310777778 | P114: 55.57702778 | Q114: 45.80852038 | R114: 4.515268679 | S114: 0.3247313215 | T114: 5784.254067 | U114: 1.348629107 | V114: 1.002722206 | W114: 1.167636144 | X114: 0.03847915712 | Y114: 0.01639344262 | Z114: 0.1 | AA114: 1 | AB114: 0.61 | AC114: 4.515268679 | AD114: 1.167636144 | AE114: #FFFCF5 | AF114: 14542066 | AG114: 10593968
A115: 648 | B115: 0 | C115: 8 | D115: 0.35 | E115: -1 | F115: 78 | G115: 35 | H115: 55.5 | I115: 7.18 | J115: A3V | K115: 8.95 | L115: 0.6 | M115: 0.156 | N115: 0.007 | O115: 0.1334305556 | P115: -77.40125 | Q115: 111.7318436 | R115: 1.939115177 | S115: 2.900884823 | T115: 7635.111327 | U115: 14.46618216 | V115: 0.7596483865 | W115: 2.194836653 | X115: 0.06703910615 | Y115: 0.04487179487 | Z115: 0.1 | AA115: 1 | AB115: 0.156 | AC115: 1.939115177 | AD115: 2.194836653 | AE115: #FBFEFF | AF115: 16442851 | AG115: 11970470
A116: 649 | B116: 0 | C116: 8 | D116: 0.25 | E116: -1 | F116: 7 | G116: 32 | H116: 41.2 | I116: 7.85 | J116: F5V | K116: 10.66 | L116: 0.99 | M116: 0.505 | N116: 0.015 | O116: 0.1334027778 | P116: -6.455222222 | Q116: 93.80863039 | R116: 2.988786023 | S116: 1.851213977 | T116: 6099.802309 | U116: 5.501556667 | V116: 0.9508504877 | W116: 2.120641531 | X116: 0.09287054409 | Y116: 0.0297029703 | Z116: 0.1 | AA116: 1 | AB116: 0.505 | AC116: 2.988786023 | AD116: 2.120641531 | AE116: #FFFDFB | AF116: 14935278 | AG116: 10921902
A117: 652 | B117: 0 | C117: 8 | D117: 1.73 | E117: 1 | F117: 31 | G117: 23 | H117: 28.4 | I117: 7.12 | J117: A5 | K117: 8.19 | L117: 0.74 | M117: 0.184 | N117: 0.009 | O117: 0.1338138889 | P117: 31.39122222 | Q117: 122.1001221 | R117: 1.686419509 | S117: 3.153580491 | T117: 7474.470898 | U117: 18.25711691 | V117: 0.7759746581 | W117: 2.572830496 | X117: 0.09035409035 | Y117: 0.04891304348 | Z117: 0.1 | AA117: 1 | AB117: 0.184 | AC117: 1.686419509 | AD117: 2.572830496 | AE117: #FCFEFF | AF117: 16311780 | AG117: 11904934
A118: 655 | B118: 0 | C118: 8 | D118: 3.52 | E118: -1 | F118: 33 | G118: 31 | H118: 45.6 | I118: 5.67 | J118: K1III | K118: 10.02 | L118: 0.71 | M118: 1.119 | N118: 0.001 | O118: 0.1343111111 | P118: -32.47066667 | Q118: 99.8003992 | R118: 0.6743386077 | S118: 4.165661392 | T118: 4713.190162 | U118: 46.37293213 | V118: 1.230589007 | W118: 10.31236653 | X118: 0.07085828343 | Y118: 0.0008936550492 | Z118: 0.1 | AA118: 1 | AB118: 1.119 | AC118: 0.6743386077 | AD118: 10.31236653 | AE118: #FFF9D9 | AF118: 12902911 | AG118: 9413819
A119: 669 | B119: 0 | C119: 8 | D119: 16.37 | E119: -1 | F119: 14 | G119: 49 | H119: 28.1 | I119: 7.04 | J119: G2/G3V | K119: 36.18 | L119: 1.02 | M119: 0.624 | N119: 0.015 | O119: 0.1378805556 | P119: -13.17552778 | Q119: 27.63957988 | R119: 4.832342813 | S119: 0.007657187381 | T119: 5745.706485 | U119: 1.007077458 | V119: 1.009449406 | W119: 1.022587669 | X119: 0.02819237148 | Y119: 0.02403846154 | Z119: 0.1 | AA119: 1 | AB119: 0.624 | AC119: 4.832342813 | AD119: 1.022587669 | AE119: #FFFCF4 | AF119: 14542066 | AG119: 10593969
A120: 671 | B120: 0 | C120: 8 | D120: 17.55 | E120: -1 | F120: 8 | G120: 49 | H120: 26.5 | I120: 5.99 | J120: G8III: | K120: 9.79 | L120: 0.92 | M120: 1.034 | N120: 0.003 | O120: 0.1382083333 | P120: -7.175972222 | Q120: 102.145046 | R120: 0.943913459 | S120: 3.896086541 | T120: 4860.463903 | U120: 36.17717214 | V120: 1.193301733 | W120: 8.564812328 | X120: 0.09397344229 | Y120: 0.002901353965 | Z120: 0.1 | AA120: 1 | AB120: 1.034 | AC120: 0.943913459 | AD120: 8.564812328 | AE120: #FFFADD | AF120: 13165310 | AG120: 9610681
A121: 677 | B121: 0 | C121: 8 | D121: 23.17 | E121: 1 | F121: 29 | G121: 5 | H121: 27 | I121: 2.07 | J121: B9p | K121: 33.6 | L121: 0.73 | M121: -0.038 | N121: 0.005 | O121: 0.1397694444 | P121: 29.09083333 | Q121: 29.76190476 | R121: -0.2983036131 | S121: 5.138303613 | T121: 9015.331277 | U121: 113.5851211 | V121: 0.6433485162 | W121: 4.411165274 | X121: 0.02172619048 | Y121: -0.1315789474 | Z121: 0.1 | AA121: 1 | AB121: -0.038 | AC121: -0.2983036131 | AD121: 4.411165274 | AE121: #F4FEFF | AF121: 16770780 | AG121: 12626081
A122: 682 | B122: 0 | C122: 8 | D122: 25.69 | E122: 1 | F122: 6 | G122: 37 | H122: 0.5 | I122: 7.59 | J122: G2V | K122: 25.15 | L122: 0.97 | M122: 0.626 | N122: 0.015 | O122: 0.1404694444 | P122: 6.616805556 | Q122: 39.76143141 | R122: 4.592689947 | S122: 0.247310053 | T122: 5740.261239 | U122: 1.255810243 | V122: 1.010406976 | W122: 1.144075493 | X122: 0.03856858847 | Y122: 0.02396166134 | Z122: 0.1 | AA122: 1 | AB122: 0.626 | AC122: 4.592689947 | AD122: 1.144075493 | AE122: #FFFCF4 | AF122: 14476530 | AG122: 10593969
A123: 687 | B123: 0 | C123: 8 | D123: 27.34 | E123: 1 | F123: 17 | G123: 25 | H123: 28 | I123: 10.73 | J123: M0 | K123: 45.64 | L123: 1.92 | M123: 1.46 | N123: 0.015 | O123: 0.1409277778 | P123: 17.42444444 | Q123: 21.91060473 | R123: 9.026728179 | S123: -4.186728179 | T123: 4151.900575 | U123: 0.02114991998 | V123: 1.3969506 | W123: 0.2838026599 | X123: 0.04206836109 | Y123: 0.0102739726 | Z123: 0.1 | AA123: 1 | AB123: 1.46 | AC123: 9.026728179 | AD123: 0.2838026599 | AE123: #FFF7C6 | AF123: 11788287 | AG123: 8561602
A124: 689 | B124: 0 | C124: 8 | D124: 28.39 | E124: 1 | F124: 34 | G124: 56 | H124: 4.3 | I124: 7.41 | J124: F8 | K124: 12.72 | L124: 0.86 | M124: 0.606 | N124: 0.015 | O124: 0.1412194444 | P124: 34.93452778 | Q124: 78.6163522 | R124: 2.932435557 | S124: 1.907564443 | T124: 5795.408338 | U124: 5.794630892 | V124: 1.000792293 | W124: 2.41101989 | X124: 0.06761006289 | Y124: 0.02475247525 | Z124: 0.1 | AA124: 1 | AB124: 0.606 | AC124: 2.932435557 | AD124: 2.41101989 | AE124: #FFFCF5 | AF124: 14607602 | AG124: 10659504
A125: 690 | B125: 0 | C125: 8 | D125: 29.78 | E125: -1 | F125: 66 | G125: 30 | H125: 50.9 | I125: 9.26 | J125: G3/G5IV/V | K125: 11.01 | L125: 0.95 | M125: 0.675 | N125: 0.023 | O125: 0.1416055556 | P125: -65.48586111 | Q125: 90.82652134 | R125: 4.468936595 | S125: 0.3710634051 | T125: 5611.420108 | U125: 1.407425327 | V125: 1.033606447 | W125: 1.267427424 | X125: 0.08628519528 | Y125: 0.03407407407 | Z125: 0.1 | AA125: 1 | AB125: 0.675 | AC125: 4.468936595 | AD125: 1.267427424 | AE125: #FFFCF1 | AF125: 14345460 | AG125: 10462898
A126: 691 | B126: 0 | C126: 8 | D126: 30.12 | E126: 1 | F126: 52 | G126: 20 | H126: 11.1 | I126: 7.78 | J126: F5 | K126: 14.43 | L126: 0.96 | M126: 0.358 | N126: 0.009 | O126: 0.1417 | P126: 52.33641667 | Q126: 69.3000693 | R126: 3.576331655 | S126: 1.263668345 | T126: 6637.861617 | U126: 3.202339246 | V126: 0.8737753715 | W126: 1.366259729 | X126: 0.06652806653 | Y126: 0.0251396648 | Z126: 0.1 | AA126: 1 | AB126: 0.358 | AC126: 3.576331655 | AD126: 1.366259729 | AE126: #FFFDFF | AF126: 15525354 | AG126: 11315115
A127: 699 | B127: 0 | C127: 8 | D127: 41.02 | E127: 1 | F127: 36 | G127: 37 | H127: 38.7 | I127: 6.21 | J127: F8IV | K127: 30.26 | L127: 0.69 | M127: 0.504 | N127: 0.004 | O127: 0.1447277778 | P127: 36.62741667 | Q127: 33.04692664 | R127: 3.614344618 | S127: 1.225655382 | T127: 6103.053293 | U127: 3.092161387 | V127: 0.9503439872 | W127: 1.588154461 | X127: 0.02280237938 | Y127: 0.007936507937 | Z127: 0.1 | AA127: 1 | AB127: 0.504 | AC127: 3.614344618 | AD127: 1.588154461 | AE127: #FFFDFC | AF127: 14935278 | AG127: 10921902
A128: 705 | B128: 0 | C128: 8 | D128: 47.38 | E128: 1 | F128: 86 | G128: 47 | H128: 16.4 | I128: 8.41 | J128: G2V | K128: 16.24 | L128: 0.7 | M128: 0.588 | N128: 0.013 | O128: 0.1464944444 | P128: 86.78788889 | Q128: 61.57635468 | R128: 4.462930125 | S128: 0.3770698755 | T128: 5846.398314 | U128: 1.415233011 | V128: 0.9920637782 | W128: 1.170828166 | X128: 0.04310344828 | Y128: 0.02210884354 | Z128: 0.1 | AA128: 1 | AB128: 0.588 | AC128: 4.462930125 | AD128: 1.170828166 | AE128: #FFFCF6 | AF128: 14673137 | AG128: 10659504
A129: 710 | B129: 0 | C129: 8 | D129: 48.74 | E129: 1 | F129: 8 | G129: 1 | H129: 18.3 | I129: 7.43 | J129: F0 | K129: 11.61 | L129: 1.01 | M129: 0.296 | N129: 0.011 | O129: 0.1468722222 | P129: 8.02175 | Q129: 86.13264427 | R129: 2.754161099 | S129: 2.085838901 | T129: 6907.216994 | U129: 6.828661114 | V129: 0.8397014319 | W129: 1.842542728 | X129: 0.08699397071 | Y129: 0.03716216216 | Z129: 0.1 | AA129: 1 | AB129: 0.296 | AC129: 2.754161099 | AD129: 1.842542728 | AE129: #FFFDFF | AF129: 15787496 | AG129: 11511721
A130: 722 | B130: 0 | C130: 8 | D130: 56.56 | E130: 1 | F130: 12 | G130: 48 | H130: 16.1 | I130: 8.48 | J130: G0 | K130: 12.89 | L130: 1.03 | M130: 0.537 | N130: 0.014 | O130: =B130+C130/60+D130/3600 -> 0.1490444444 | P130: =E130*F130+G130/60+H130/3600 -> 12.80447222 | Q130: =1000/K130 -> 77.57951901 | R130: =I130-5*LOG10(Q130)+5 -> 4.031264587 | S130: =4.84-R130 -> 0.8087354132 | T130: =10^(3.939654-0.395361*M130+0.2082113*M130^2-0.0604097*M130^3) -> 5998.354578 | U130: =10^(0.4*S130) -> 2.106173603 | V130: =5800/T130 -> 0.9669318351 | W130: =V130^2*U130^0.5 -> 1.356871751 | X130: =L130/K130 -> 0.07990690458 | Y130: =N130/M130 -> 0.0260707635 | Z130: =$Z$1 -> 0.1 | AA130: =IF(ISERROR(AND(X130>0,X130<Z130,Y130<Z130)),0,IF(OR(AND(X130>0,X130<Z130,Y130<Z130),I130<1.5),1,0)) -> 1 | AB130: =IF(AA130=1,M130,"") -> 0.537 | AC130: =IF(AA130=1,R130,"") -> 4.031264587 | AD130: =W130 -> 1.356871751 | AE130: =getRGB_hex(T130) -> #FFFDF9 | AF130: 14804207 | AG130: 10790575
A131: 723 | B131: 0 | C131: 8 | D131: 56.98 | E131: 1 | F131: 66 | G131: 27 | H131: 23.9 | I131: 8.57 | J131: G5 | K131: 31.34 | L131: 2.1 | M131: 0.885 | N131: 0.017 | O131: 0.1491611111 | P131: 66.45663889 | Q131: 31.90810466 | R131: 6.050494961 | S131: -1.210494961 | T131: 5139.993594 | U131: 0.3279457566 | V131: 1.128406076 | W131: 0.7291751163 | X131: 0.06700701978 | Y131: 0.01920903955 | Z131: 0.1 | AA131: 1 | AB131: 0.885 | AC131: 6.050494961 | AD131: 0.7291751163 | AE131: #FFFBE5 | AF131: =getRGB_VBA(T131,0.8) -> 13624313 | AG131: =getRGB_VBA(T131,0.4) -> 9938358
A132: 726 | B132: 0 | C132: 8 | D132: 59.59 | E132: -1 | F132: 39 | G132: 44 | H132: 13.6 | I132: 7.72 | J132: G0V | K132: 18.22 | L132: 0.95 | M132: 0.62 | N132: 0.007 | O132: 0.1498861111 | P132: -38.26288889 | Q132: 54.88474204 | R132: 4.022741863 | S132: 0.8172581368 | T132: 5756.642779 | U132: 2.122771532 | V132: 1.007531685 | W132: 1.479002994 | X132: 0.05214050494 | Y132: 0.01129032258 | Z132: 0.1 | AA132: 1 | AB132: 0.62 | AC132: 4.022741863 | AD132: 1.479002994 | AE132: #FFFCF4 | AF132: 14542066 | AG132: 10593969
A133: 729 | B133: 0 | C133: 9 | D133: 2.34 | E133: 1 | F133: 18 | G133: 12 | H133: 43.3 | I133: 5.57 | J133: G9III | K133: 11.17 | L133: 0.72 | M133: 1.043 | N133: 0.003 | O133: 0.15065 | P133: 18.21202778 | Q133: 89.52551477 | R133: 0.8102658656 | S133: 4.029734134 | T133: 4844.539314 | U133: 40.91604558 | V133: 1.197224261 | W133: 9.168490616 | X133: 0.06445837064 | Y133: 0.002876318313 | Z133: 0.1 | AA133: 1 | AB133: 1.043 | AC133: 0.8102658656 | AD133: 9.168490616 | AE133: #FFFADD | AF133: 13165310 | AG133: 9610681
A134: 738 | B134: 0 | C134: 9 | D134: 3.9 | E134: -1 | F134: 27 | G134: 7 | H134: 20.5 | I134: 11.73 | K134: 42.82 | L134: 2.61 | M134: 1.493 | N134: 0.01 | O134: 0.1510833333 | P134: -26.87763889 | Q134: 23.3535731 | R134: 9.888233315 | S134: -5.048233315 | T134: 4096.863915 | U134: 0.009565477931 | V134: 1.415717027 | W134: 0.1960226462 | X134: 0.06095282578 | Y134: 0.006697923644 | Z134: 0.1 | AA134: 1 | AB134: 1.493 | AC134: 9.888233315 | AD134: 0.1960226462 | AE134: #FFF7C4 | AF134: 11657215 | AG134: 8496067
A135: 740 | B135: 0 | C135: 9 | D135: 4.3 | E135: 1 | F135: 19 | G135: 55 | H135: 28.7 | I135: 7.11 | J135: F5 | K135: 8.73 | L135: 0.77 | M135: 0.476 | N135: 0.004 | O135: 0.1511944444 | P135: 19.92463889 | Q135: 114.5475372 | R135: 1.815071219 | S135: 3.024928781 | T135: 6196.160385 | U135: 16.21703719 | V135: 0.9360635684 | W135: 3.52855135 | X135: 0.08820160367 | Y135: 0.008403361345 | Z135: 0.1 | AA135: 1 | AB135: 0.476 | AC135: 1.815071219 | AD135: 3.52855135 | AE135: #FFFDFD | AF135: 15066349 | AG135: 10987437
A136: 746 | B136: 0 | C136: 9 | D136: 10.09 | E136: 1 | F136: 59 | G136: 9 | H136: 0.8 | I136: 2.28 | J136: F2III-IV | K136: 59.89 | L136: 0.56 | M136: 0.38 | N136: 0.004 | O136: 0.1528027778 | P136: 59.15022222 | Q136: 16.69727834 | R136: 1.166771565 | S136: 3.673228435 | T136: 6548.890526 | U136: 29.46397747 | V136: 0.8856461986 | W136: 4.257613289 | X136: 0.009350475872 | Y136: 0.01052631579 | Z136: 0.1 | AA136: 1 | AB136: 0.38 | AC136: 1.166771565 | AD136: 4.257613289 | AE136: #FFFDFF | AF136: 15459818 | AG136: 11249579
A137: 753 | B137: 0 | C137: 9 | D137: 14.68 | E137: 1 | F137: 32 | G137: 28 | H137: 36 | I137: 9.33 | J137: G0 | K137: 17.75 | L137: 1.21 | M137: 0.812 | N137: 0.031 | O137: 0.1540777778 | P137: 32.47666667 | Q137: 56.33802817 | R137: 5.575991787 | S137: -0.735991787 | T137: 5291.284967 | U137: 0.5076954663 | V137: 1.096142059 | W137: 0.8561213481 | X137: 0.06816901408 | Y137: 0.0381773399 | Z137: 0.1 | AA137: 1 | AB137: 0.812 | AC137: 5.575991787 | AD137: 0.8561213481 | AE137: #FFFBE9 | AF137: 13886455 | AG137: 10135221
A138: 755 | B138: 0 | C138: 9 | D138: 16.58 | E138: 1 | F138: 65 | G138: 4 | H138: 14.9 | I138: 7.02 | J138: K0 | K138: 17.03 | L138: 0.69 | M138: 0.932 | N138: 0.008 | O138: 0.1546055556 | P138: 65.07080556 | Q138: 58.71990605 | R138: 3.17607324 | S138: 1.66392676 | T138: 5048.120934 | U138: 4.629890333 | V138: 1.148942364 | W138: 2.840415267 | X138: 0.04051673517 | Y138: 0.008583690987 | Z138: 0.1 | AA138: 1 | AB138: 0.932 | AC138: 3.17607324 | AD138: 2.840415267 | AE138: #FFFBE3 | AF138: 13492987 | AG138: 9872823
A139: 759 | B139: 0 | C139: 9 | D139: 19.44 | E139: 1 | F139: 17 | G139: 32 | H139: 3.3 | I139: 7.07 | J139: G2III | K139: 19.28 | L139: 0.79 | M139: 0.644 | N139: 0.007 | O139: 0.1554 | P139: 17.53425 | Q139: 51.86721992 | R139: 3.495535148 | S139: 1.344464852 | T139: 5691.928184 | U139: 3.449736636 | V139: 1.018986855 | W139: 1.928546584 | X139: 0.04097510373 | Y139: 0.01086956522 | Z139: 0.1 | AA139: 1 | AB139: 0.644 | AC139: 3.495535148 | AD139: 1.928546584 | AE139: #FFFCF3 | AF139: 14410995 | AG139: 10528433
A140: 761 | B140: 0 | C140: 9 | D140: 21.02 | E140: -1 | F140: 27 | G140: 59 | H140: 16.5 | I140: 5.42 | J140: F3V | K140: 14.57 | L140: 1.34 | M140: 0.414 | N140: 0.002 | O140: 0.1558388889 | P140: -26.01208333 | Q140: 68.63417982 | R140: 1.237297759 | S140: 3.602702241 | T140: 6417.628627 | U140: 27.6109212 | V140: 0.9037606159 | W140: 4.291877045 | X140: 0.09196980096 | Y140: 0.004830917874 | Z140: 0.1 | AA140: 1 | AB140: 0.414 | AC140: 1.237297759 | AD140: 4.291877045 | AE140: #FFFDFF | AF140: 15328748 | AG140: 11184044
A141: 765 | B141: 0 | C141: 9 | D141: 24.54 | E141: -1 | F141: 45 | G141: 44 | H141: 49.2 | I141: 3.88 | J141: K0III | K141: 23.28 | L141: 0.98 | M141: 1.013 | N141: 0.029 | O141: 0.1568166667 | P141: -44.253 | Q141: 42.95532646 | R141: 0.7149148799 | S141: 4.12508512 | T141: 4897.978222 | U141: 44.67186129 | V141: 1.184162064 | W141: 9.372151744 | X141: 0.04209621993 | Y141: 0.0286278381 | Z141: 0.1 | AA141: 1 | AB141: 1.013 | AC141: 0.7149148799 | AD141: 9.372151744 | AE141: #FFFADF | AF141: 13230845 | AG141: 9676217
A142: 768 | B142: 0 | C142: 9 | D142: 27.98 | E142: 1 | F142: 19 | G142: 6 | H142: 56.5 | I142: 7.94 | J142: G3V | K142: 13.8 | L142: 1.3 | M142: 0.66 | N142: 0.015 | O142: 0.1577722222 | P142: 19.11569444 | Q142: 72.46376812 | R142: 3.639395432 | S142: 1.200604568 | T142: 5649.955603 | U142: 3.021633781 | V142: 1.026556739 | W142: 1.831837015 | X142: 0.09420289855 | Y142: 0.02272727273 | Z142: 0.1 | AA142: 1 | AB142: 0.66 | AC142: 3.639395432 | AD142: 1.831837015 | AE142: #FFFCF2 | AF142: 14410995 | AG142: 10528433
A143: 772 | B143: 0 | C143: 9 | D143: 30.7 | E143: -1 | F143: 34 | G143: 6 | H143: 38.8 | I143: 8.52 | J143: G3V | K143: 16.26 | L143: 0.98 | M143: 0.687 | N143: 0.014 | O143: 0.1585277778 | P143: -33.88922222 | Q143: 61.50061501 | R143: 4.575602706 | S143: 0.2643972937 | T143: 5581.139369 | U143: 1.275730438 | V143: 1.039214328 | W143: 1.219803038 | X143: 0.06027060271 | Y143: 0.02037845706 | Z143: 0.1 | AA143: 1 | AB143: 0.687 | AC143: 4.575602706 | AD143: 1.219803038 | AE143: #FFFCF0 | AF143: 14279924 | AG143: 10397362
A144: 787 | B144: 0 | C144: 9 | D144: 43.57 | E144: -1 | F144: 31 | G144: 49 | H144: 29.8 | I144: 9.53 | J144: K1/K2V | K144: 23.86 | L144: 1.59 | M144: 0.965 | N144: 0.005 | O144: 0.1621027778 | P144: -30.17505556 | Q144: 41.91114837 | R144: 6.418352197 | S144: -1.578352197 | T144: 4985.814379 | U144: 0.2337002201 | V144: 1.163300428 | W144: 0.6542042125 | X144: 0.0666387259 | Y144: 0.00518134715 | Z144: 0.1 | AA144: 1 | AB144: 0.965 | AC144: 6.418352197 | AD144: 0.6542042125 | AE144: #FFFAE1 | AF144: 13361916 | AG144: 9741752
A145: 791 | B145: 0 | C145: 9 | D145: 48.45 | E145: -1 | F145: 40 | G145: 53 | H145: 33.5 | I145: 8.57 | J145: G3V | K145: 13.92 | L145: 1.11 | M145: 0.644 | N145: 0.013 | O145: 0.1634583333 | P145: -39.10736111 | Q145: 71.83908046 | R145: 4.288196176 | S145: 0.5518038236 | T145: 5691.928184 | U145: 1.662346409 | V145: 1.018986855 | W145: 1.338745204 | X145: 0.07974137931 | Y145: 0.0201863354 | Z145: 0.1 | AA145: 1 | AB145: 0.644 | AC145: 4.288196176 | AD145: 1.338745204 | AE145: #FFFCF3 | AF145: 14410995 | AG145: 10528433
A146: 792 | B146: 0 | C146: 9 | D146: 48.66 | E146: -1 | F146: 6 | G146: 50 | H146: 28.2 | I146: 8.43 | J146: G5 | K146: 12.54 | L146: 1.23 | M146: 0.906 | N146: 0.017 | O146: 0.1635166667 | P146: -5.158833333 | Q146: 79.74481659 | R146: 3.921487682 | S146: 0.9185123175 | T146: 5098.459045 | U146: 2.330262933 | V146: 1.137598625 | W146: 1.975516132 | X146: 0.0980861244 | Y146: 0.01876379691 | Z146: 0.1 | AA146: 1 | AB146: 0.906 | AC146: 3.921487682 | AD146: 1.975516132 | AE146: #FFFBE4 | AF146: 13558778 | AG146: 9872822
A147: 798 | B147: 0 | C147: 9 | D147: 52.1 | E147: -1 | F147: 62 | G147: 17 | H147: 48.6 | I147: 6.34 | J147: A6V | K147: 7.37 | L147: 0.57 | M147: 0.164 | N147: 0.009 | O147: 0.1644722222 | P147: -61.70316667 | Q147: 135.6852103 | R147: 0.6773374393 | S147: 4.162662561 | T147: 7588.367989 | U147: 46.24502561 | V147: 0.7643277195 | W147: 3.97275454 | X147: 0.07734056988 | Y147: 0.05487804878 | Z147: 0.1 | AA147: 1 | AB147: 0.164 | AC147: 0.6773374393 | AD147: 3.97275454 | AE147: #FBFEFF | AF147: 16377315 | AG147: 11970470
A148: 801 | B148: 0 | C148: 9 | D148: 52.91 | E148: -1 | F148: 50 | G148: 16 | H148: 4 | I148: 8.32 | J148: G2/G3V | K148: 18.8 | L148: 1.05 | M148: 0.595 | N148: 0.01 | O148: 0.1646972222 | P148: -49.73222222 | Q148: 53.19148936 | R148: 4.690789246 | S148: 0.1492107537 | T148: 5826.41234 | U148: 1.147319306 | V148: 0.9954667918 | W148: 1.061440622 | X148: 0.05585106383 | Y148: 0.01680672269 | Z148: 0.1 | AA148: 1 | AB148: 0.595 | AC148: 4.690789246 | AD148: 1.061440622 | AE148: #FFFCF6 | AF148: 14607601 | AG148: 10659504
A149: 804 | B149: 0 | C149: 9 | D149: 56.38 | E149: -1 | F149: 78 | G149: 35 | H149: 25.9 | I149: 8.78 | J149: K1IV/V | K149: 8.36 | L149: 0.83 | M149: 1.011 | N149: 0.019 | O149: 0.1656611111 | P149: -77.40947222 | Q149: 119.6172249 | R149: 3.391031387 | S149: 1.448968613 | T149: 4901.578269 | U149: 3.798284097 | V149: 1.183292336 | W149: 2.72883845 | X149: 0.09928229665 | Y149: 0.01879327399 | Z149: 0.1 | AA149: 1 | AB149: 1.011 | AC149: 3.391031387 | AD149: 2.72883845 | AE149: #FFFADF | AF149: 13230845 | AG149: 9676217
A150: 813 | B150: 0 | C150: 10 | D150: 2.18 | E150: 1 | F150: 11 | G150: 8 | H150: 44.9 | I150: 5.54 | J150: B9V | K150: 10.04 | L150: 0.86 | M150: -0.064 | N150: 0.004 | O150: 0.1672722222 | P150: 11.14580556 | Q150: 99.60159363 | R150: 0.548668564 | S150: 4.291331436 | T150: 9243.27286 | U150: 52.06340576 | V150: 0.6274833696 | W150: 2.840996687 | X150: 0.08565737052 | Y150: -0.0625 | Z150: 0.1 | AA150: 1 | AB150: -0.064 | AC150: 0.548668564 | AD150: 2.840996687 | AE150: #F3FEFF | AF150: 16770779 | AG150: 12757152
A151: 814 | B151: 0 | C151: 10 | D151: 2.27 | E151: -1 | F151: 82 | G151: 13 | H151: 26.4 | I151: 5.29 | J151: K1/K2III | K151: 13.45 | L151: 0.5 | M151: 1.049 | N151: 0.002 | O151: 0.1672972222 | P151: -81.776 | Q151: 74.34944238 | R151: 0.9336114217 | S151: 3.906388578 | T151: 4833.971322 | U151: 36.52207394 | V151: 1.199841624 | W151: 8.700126424 | X151: 0.03717472119 | Y151: 0.001906577693 | Z151: 0.1 | AA151: 1 | AB151: 1.049 | AC151: 0.9336114217 | AD151: 8.700126424 | AE151: #FFFADD | AF151: 13099774 | AG151: 9610681
A152: 815 | B152: 0 | C152: 10 | D152: 2.64 | E152: -1 | F152: 63 | G152: 17 | H152: 48 | I152: 8.13 | J152: F3V | K152: 9.63 | L152: 0.81 | M152: 0.456 | N152: 0.015 | O152: 0.1674 | P152: -62.70333333 | Q152: 103.8421599 | R152: 3.048131436 | S152: 1.791868564 | T152: 6265.215773 | U152: 5.208916861 | V152: 0.9257462488 | W152: 1.955949487 | X152: 0.08411214953 | Y152: 0.03289473684 | Z152: 0.1 | AA152: 1 | AB152: 0.456 | AC152: 3.048131436 | AD152: 1.955949487 | AE152: #FFFDFF | AF152: 15131885 | AG152: 11052973
A153: 819 | B153: 0 | C153: 10 | D153: 4.41 | E153: -1 | F153: 79 | G153: 0 | H153: 6.6 | I153: 7.88 | J153: F5V | K153: 11.15 | L153: 0.68 | M153: 0.476 | N153: 0.015 | O153: 0.1678916667 | P153: -78.99816667 | Q153: 89.68609865 | R153: 3.116374337 | S153: 1.723625663 | T153: 6196.160385 | U153: 4.891592441 | V153: 0.9360635684 | W153: 1.937919882 | X153: 0.06098654709 | Y153: 0.03151260504 | Z153: 0.1 | AA153: 1 | AB153: 0.476 | AC153: 3.116374337 | AD153: 1.937919882 | AE153: #FFFDFD | AF153: 15066349 | AG153: 10987437
A154: 822 | B154: 0 | C154: 10 | D154: 5.24 | E154: 1 | F154: 84 | G154: 9 | H154: 7.1 | I154: 8.38 | J154: F5 | K154: 7.73 | L154: 0.7 | M154: 0.371 | N154: 0.013 | O154: 0.1681222222 | P154: 84.15197222 | Q154: 129.3661061 | R154: 2.82089747 | S154: 2.01910253 | T154: 6584.892216 | U154: 6.421566911 | V154: 0.8808040907 | W154: 1.965980256 | X154: 0.09055627426 | Y154: 0.03504043127 | Z154: 0.1 | AA154: 1 | AB154: 0.371 | AC154: 2.82089747 | AD154: 1.965980256 | AE154: #FFFDFF | AF154: 15459818 | AG154: 11315115
A155: 840 | B155: 0 | C155: 10 | D155: 18.85 | E155: -1 | F155: 5 | G155: 14 | H155: 54.7 | I155: 5.84 | J155: K1III | K155: 18.18 | L155: 0.92 | M155: 0.973 | N155: 0.022 | O155: 0.1719027778 | P155: -4.751472222 | Q155: 55.00550055 | R155: 2.137969394 | S155: 2.702030606 | T155: 4970.956716 | U155: 12.04515082 | V155: 1.16677741 | W155: 4.724786025 | X155: 0.05060506051 | Y155: 0.02261048304 | Z155: 0.1 | AA155: 1 | AB155: 0.973 | AC155: 2.137969394 | AD155: 4.724786025 | AE155: #FFFAE1 | AF155: 13361916 | AG155: 9741752
A156: 846 | B156: 0 | C156: 10 | D156: 22.97 | E156: -1 | F156: 13 | G156: 59 | H156: 2.9 | I156: 8.92 | J156: G2V | K156: 13.53 | L156: 1.28 | M156: 0.578 | N156: 0.003 | O156: 0.1730472222 | P156: -12.01586111 | Q156: 73.90983001 | R156: 4.576488983 | S156: 0.263511017 | T156: 5875.302874 | U156: 1.274689495 | V156: 0.9871831503 | W156: 1.100265946 | X156: 0.09460458241 | Y156: 0.005190311419 | Z156: 0.1 | AA156: 1 | AB156: 0.578 | AC156: 4.576488983 | AD156: 1.100265946 | AE156: #FFFCF7 | AF156: 14673137 | AG156: 10725040
A157: 848 | B157: 0 | C157: 10 | D157: 24.2 | E157: 1 | F157: 58 | G157: 29 | H157: 22.2 | I157: 7.74 | J157: A | K157: 10.35 | L157: 0.82 | M157: 0.473 | N157: 0.015 | O157: 0.1733888889 | P157: 58.4895 | Q157: 96.61835749 | R157: 2.814701749 | S157: 2.025298251 | T157: 6206.380074 | U157: 6.458316142 | V157: 0.9345222064 | W157: 2.219416966 | X157: 0.07922705314 | Y157: 0.03171247357 | Z157: 0.1 | AA157: 1 | AB157: 0.473 | AC157: 2.814701749 | AD157: 2.219416966 | AE157: #FFFDFE | AF157: 15066349 | AG157: 10987437
A158: 856 | B158: 0 | C158: 10 | D158: 29.61 | E158: 1 | F158: 15 | G158: 13 | H158: 54.9 | I158: 8.24 | J158: F6V | K158: 12.91 | L158: 1.06 | M158: 0.491 | N158: 0.015 | O158: 0.1748916667 | P158: 15.23191667 | Q158: 77.45933385 | R158: 3.794631211 | S158: 1.045368789 | T158: 6145.776955 | U158: 2.619072469 | V158: 0.9437374708 | W158: 1.441372247 | X158: 0.08210689388 | Y158: 0.03054989817 | Z158: 0.1 | AA158: 1 | AB158: 0.491 | AC158: 3.794631211 | AD158: 1.441372247 | AE158: #FFFDFC | AF158: 15000814 | AG158: 10921902
A159: 865 | B159: 0 | C159: 10 | D159: 38.31 | E159: -1 | F159: 73 | G159: 13 | H159: 28 | I159: 6.66 | J159: F3/F5IV+... | K159: 15.06 | L159: 0.7 | M159: 0.372 | N159: 0.006 | O159: 0.1773083333 | P159: -72.77555556 | Q159: 66.40106242 | R159: 2.549124859 | S159: 2.290875141 | T159: 6580.865258 | U159: 8.248026664 | V159: 0.8813430716 | W159: 2.230822508 | X159: 0.04648074369 | Y159: 0.01612903226 | Z159: 0.1 | AA159: 1 | AB159: 0.372 | AC159: 2.549124859 | AD159: 2.230822508 | AE159: #FFFDFF | AF159: 15459818 | AG159: 11315115
A160: 867 | B160: 0 | C160: 10 | D160: 39.1 | E160: 1 | F160: 12 | G160: 49 | H160: 13 | I160: 8.47 | J160: G5 | K160: 15.57 | L160: 1.17 | M160: 0.574 | N160: 0.015 | O160: 0.1775277778 | P160: 12.82027778 | Q160: 64.22607579 | R160: 4.431443063 | S160: 0.4085569372 | T160: 5886.982932 | U160: 1.456876624 | V160: 0.9852245313 | W160: 1.171606631 | X160: 0.07514450867 | Y160: 0.02613240418 | Z160: 0.1 | AA160: 1 | AB160: 0.574 | AC160: 4.431443063 | AD160: 1.171606631 | AE160: #FFFCF7 | AF160: 14673137 | AG160: 10725040
A161: 870 | B161: 0 | C161: 10 | D161: 40.73 | E161: 1 | F161: 2 | G161: 3 | H161: 19.8 | I161: 7.51 | J161: F8 | K161: 18.2 | L161: 0.91 | M161: 0.503 | N161: 0.015 | O161: 0.1779805556 | P161: 2.0555 | Q161: 54.94505495 | R161: 3.81035694 | S161: 1.02964306 | T161: 6106.309296 | U161: 2.581411402 | V161: 0.9498372453 | W161: 1.449529314 | X161: 0.05 | Y161: 0.02982107356 | Z161: 0.1 | AA161: 1 | AB161: 0.503 | AC161: 3.81035694 | AD161: 1.449529314 | AE161: #FFFDFC | AF161: 14935278 | AG161: 10921902
A162: 873 | B162: 0 | C162: 10 | D162: 42.75 | E162: -1 | F162: 12 | G162: 34 | H162: 47.3 | I162: 5.84 | J162: K0III | K162: 15.35 | L162: 0.74 | M162: 1 | N162: 0.003 | O162: 0.1785416667 | P162: -11.42019444 | Q162: 65.1465798 | R162: 1.770541899 | S162: 3.069458101 | T162: 4921.467256 | U162: 16.8959743 | V162: 1.17851033 | W162: 5.708978498 | X162: 0.04820846906 | Y162: 0.003 | Z162: 0.1 | AA162: 1 | AB162: 1 | AC162: 1.770541899 | AD162: 5.708978498 | AE162: #FFFADF | AF162: 13296381 | AG162: 9676216
A163: 880 | B163: 0 | C163: 10 | D163: 46.82 | E163: 1 | F163: 37 | G163: 28 | H163: 25.9 | I163: 7.77 | J163: F2 | K163: 8.8 | L163: 0.8 | M163: 0.405 | N163: 0.01 | O163: 0.1796722222 | P163: 37.47386111 | Q163: 113.6363636 | R163: 2.492413361 | S163: 2.347586639 | T163: 6451.662338 | U163: 8.690297731 | V163: 0.8989931115 | W163: 2.382484346 | X163: 0.09090909091 | Y163: 0.02469135802 | Z163: 0.1 | AA163: 1 | AB163: 0.405 | AC163: 2.492413361 | AD163: 2.382484346 | AE163: #FFFDFF | AF163: 15328747 | AG163: 11184044
A164: 889 | B164: 0 | C164: 10 | D164: 55.92 | E164: 1 | F164: 48 | G164: 6 | H164: 37.5 | I164: 8.41 | J164: G5 | K164: 16.45 | L164: 0.95 | M164: 0.575 | N164: 0.013 | O164: 0.1822 | P164: 48.11041667 | Q164: 60.79027356 | R164: 4.490829511 | S164: 0.3491704886 | T164: 5884.05652 | U164: 1.379330042 | V164: 0.9857145288 | W164: 1.14113339 | X164: 0.05775075988 | Y164: 0.02260869565 | Z164: 0.1 | AA164: 1 | AB164: 0.575 | AC164: 4.490829511 | AD164: 1.14113339 | AE164: #FFFCF7 | AF164: 14673137 | AG164: 10725040
A165: 895 | B165: 0 | C165: 11 | D165: 1.41 | E165: 1 | F165: 29 | G165: 33 | H165: 1.9 | I165: 8.55 | J165: F5V | K165: 12.6 | L165: 1.18 | M165: 0.435 | N165: 0.017 | O165: 0.183725 | P165: 29.55052778 | Q165: 79.36507937 | R165: 4.051852726 | S165: 0.7881472744 | T165: 6340.131303 | U165: 2.066611824 | V165: 0.9148075525 | W165: 1.203064572 | X165: 0.09365079365 | Y165: 0.03908045977 | Z165: 0.1 | AA165: 1 | AB165: 0.435 | AC165: 4.051852726 | AD165: 1.203064572 | AE165: #FFFDFF | AF165: 15197676 | AG165: 11118508
A166: 897 | B166: 0 | C166: 11 | D166: 4.46 | E166: -1 | F166: 5 | G166: 47 | H166: 2.4 | I166: 10.86 | J166: M2 | K166: 39.19 | L166: 2.29 | M166: 1.418 | N166: 0.018 | O166: 0.1845722222 | P166: -4.216 | Q166: 25.51671345 | R166: 8.825876317 | S166: -3.985876317 | T166: 4221.307824 | U166: 0.02544775489 | V166: 1.373981771 | W166: 0.3011526425 | X166: 0.05843327379 | Y166: 0.01269393512 | Z166: 0.1 | AA166: 1 | AB166: 1.418 | AC166: 8.825876317 | AD166: 0.3011526425 | AE166: #FFF7C8 | AF166: 11919359 | AG166: 8692673
A167: 910 | B167: 0 | C167: 11 | D167: 15.91 | E167: -1 | F167: 15 | G167: 28 | H167: 2.4 | I167: 4.89 | J167: F5V | K167: 52.94 | L167: 0.77 | M167: 0.487 | N167: 0.012 | O167: 0.1877527778 | P167: -14.53266667 | Q167: 18.88930865 | R167: 3.508919685 | S167: 1.331080315 | T167: 6159.097225 | U167: 3.407470668 | V167: 0.9416964513 | W167: 1.636959485 | X167: 0.01454476766 | Y167: 0.02464065708 | Z167: 0.1 | AA167: 1 | AB167: 0.487 | AC167: 3.508919685 | AD167: 1.636959485 | AE167: #FFFDFD | AF167: 15000814 | AG167: 10987438
A168: 914 | B168: 0 | C168: 11 | D168: 18.1 | E168: -1 | F168: 32 | G168: 48 | H168: 1.5 | I168: 8.6 | J168: G6V | K168: 15.08 | L168: 1.1 | M168: 0.7 | N168: 0.015 | O168: 0.1883611111 | P168: -31.19958333 | Q168: 66.31299735 | R168: 4.492006708 | S168: 0.3479932923 | T168: 5548.86693 | U168: 1.377835331 | V168: 1.045258442 | W168: 1.282466489 | X168: 0.07294429708 | Y168: 0.02142857143 | Z168: 0.1 | AA168: 1 | AB168: 0.7 | AC168: 4.492006708 | AD168: 1.282466489 | AE168: #FFFCF0 | AF168: 14214132 | AG168: 10397362
A169: 919 | B169: 0 | C169: 11 | D169: 22.3 | E169: 1 | F169: 30 | G169: 26 | H169: 58.2 | I169: 7.95 | J169: K0V | K169: 29.35 | L169: 0.95 | M169: 0.755 | N169: 0.015 | O169: 0.1895277778 | P169: 30.4495 | Q169: 34.07155026 | R169: 5.288040528 | S169: -0.4480405279 | T169: 5418.057836 | U169: 0.6618869048 | V169: 1.070494294 | W169: 0.9323105704 | X169: 0.03236797274 | Y169: 0.01986754967 | Z169: 0.1 | AA169: 1 | AB169: 0.755 | AC169: 5.288040528 | AD169: 0.9323105704 | AE169: #FFFBEC | AF169: 14083062 | AG169: 10266291
A170: 920 | B170: 0 | C170: 11 | D170: 24.45 | E170: 1 | F170: 23 | G170: 49 | H170: 5.3 | I170: 8.23 | J170: G0 | K170: 18.6 | L170: 0.91 | M170: 0.581 | N170: 0.015 | O170: 0.190125 | P170: 23.81813889 | Q170: 53.76344086 | R170: 4.577564721 | S170: 0.2624352789 | T170: 5866.587406 | U170: 1.273427169 | V170: 0.9886497206 | W170: 1.102990957 | X170: 0.04892473118 | Y170: 0.02581755594 | Z170: 0.1 | AA170: 1 | AB170: 0.581 | AC170: 4.577564721 | AD170: 1.102990957 | AE170: #FFFCF7 | AF170: 14673137 | AG170: 10725040
A171: 922 | B171: 0 | C171: 11 | D171: 29.29 | E171: -1 | F171: 18 | G171: 42 | H171: 24.8 | I171: 8.48 | J171: F3V | K171: 11.58 | L171: 1.13 | M171: 0.473 | N171: 0.015 | O171: 0.1914694444 | P171: -17.29311111 | Q171: 86.35578584 | R171: 3.798542797 | S171: 1.041457203 | T171: 6206.380074 | U171: 2.609653705 | V171: 0.9345222064 | W171: 1.410817025 | X171: 0.097582038 | Y171: 0.03171247357 | Z171: 0.1 | AA171: 1 | AB171: 0.473 | AC171: 3.798542797 | AD171: 1.410817025 | AE171: #FFFDFE | AF171: 15066349 | AG171: 10987437
A172: 929 | B172: 0 | C172: 11 | D172: 32.78 | E172: -1 | F172: 58 | G172: 54 | H172: 35.4 | I172: 8.34 | J172: G4V | K172: 17 | L172: 0.82 | M172: 0.619 | N172: 0.002 | O172: 0.1924388889 | P172: -57.09016667 | Q172: 58.82352941 | R172: 4.492244607 | S172: 0.3477553931 | T172: 5759.386447 | U172: 1.377533462 | V172: 1.007051715 | W172: 1.190295045 | X172: 0.04823529412 | Y172: 0.003231017771 | Z172: 0.1 | AA172: 1 | AB172: 0.619 | AC172: 4.492244607 | AD172: 1.190295045 | AE172: #FFFCF4 | AF172: 14542066 | AG172: 10593969
A173: 934 | B173: 0 | C173: 11 | D173: 35.65 | E173: -1 | F173: 57 | G173: 28 | H173: 20.6 | I173: 9.04 | J173: K1V | K173: 27.46 | L173: 1.09 | M173: 0.891 | N173: 0.02 | O173: 0.1932361111 | P173: -56.52761111 | Q173: 36.41660597 | R173: 6.233502665 | S173: -1.393502665 | T173: 5128.043084 | U173: 0.2770760159 | V173: 1.131035739 | W173: 0.6733674569 | X173: 0.03969410051 | Y173: 0.02244668911 | Z173: 0.1 | AA173: 1 | AB173: 0.891 | AC173: 6.233502665 | AD173: 0.6733674569 | AE173: #FFFBE5 | AF173: 13624314 | AG173: 9938358
A174: 943 | B174: 0 | C174: 11 | D174: 37.47 | E174: 1 | F174: 10 | G174: 19 | H174: 42.4 | I174: 8.61 | J174: G0 | K174: 20.55 | L174: 1.21 | M174: 0.643 | N174: 0.022 | O174: 0.1937416667 | P174: 10.32844444 | Q174: 48.66180049 | R174: 5.174059131 | S174: -0.3340591311 | T174: 5694.581994 | U174: 0.7351506534 | V174: 1.018511983 | W174: 0.8894477889 | X174: 0.05888077859 | Y174: 0.03421461897 | Z174: 0.1 | AA174: 1 | AB174: 0.643 | AC174: 5.174059131 | AD174: 0.8894477889 | AE174: #FFFCF3 | AF174: 14476531 | AG174: 10528433
A175: 948 | B175: 0 | C175: 11 | D175: 41.09 | E175: -1 | F175: 39 | G175: 13 | H175: 46.7 | I175: 9.92 | J175: K5V | K175: 29.15 | L175: 1.54 | M175: 1.071 | N175: 0 | O175: 0.1947472222 | P175: -38.77036111 | Q175: 34.30531732 | R175: 7.243192795 | S175: -2.403192795 | T175: 4795.535425 | U175: 0.1093258548 | V175: 1.209458275 | W175: 0.4836633962 | X175: 0.05283018868 | Y175: 0 | Z175: 0.1 | AA175: 1 | AB175: 1.071 | AC175: 7.243192795 | AD175: 0.4836633962 | AE175: #FFFADC | AF175: 13034239 | AG175: 9545146
A176: 950 | B176: 0 | C176: 11 | D176: 43.89 | E176: -1 | F176: 35 | G176: 8 | H176: 0.2 | I176: 5.24 | J176: F3/F5V | K176: 45.85 | L176: 0.66 | M176: 0.459 | N176: 0.002 | O176: 0.195525 | P176: -34.86661111 | Q176: 21.81025082 | R176: 3.5466967 | S176: 1.2933033 | T176: 6254.717398 | U176: 3.290950272 | V176: 0.927300089 | W176: 1.559916181 | X176: 0.01439476554 | Y176: 0.004357298475 | Z176: 0.1 | AA176: 1 | AB176: 0.459 | AC176: 3.5466967 | AD176: 1.559916181 | AE176: #FFFDFF | AF176: 15131885 | AG176: 11052973
A177: 955 | B177: 0 | C177: 11 | D177: 48.14 | E177: -1 | F177: 17 | G177: 33 | H177: 27.7 | I177: 9.02 | J177: G3V | K177: 16.48 | L177: 1.49 | M177: 0.599 | N177: 0.021 | O177: 0.1967055556 | P177: -16.44230556 | Q177: 60.67961165 | R177: 5.104786037 | S177: -0.2647860368 | T177: 5815.081719 | U177: 0.7835840464 | V177: 0.9974064476 | W177: 0.8806171423 | X177: 0.09041262136 | Y177: 0.03505843072 | Z177: 0.1 | AA177: 1 | AB177: 0.599 | AC177: 5.104786037 | AD177: 0.8806171423 | AE177: #FFFCF6 | AF177: 14607601 | AG177: 10659504
A178: 964 | B178: 0 | C178: 11 | D178: 54.77 | E178: -1 | F178: 22 | G178: 49 | H178: 3.4 | I178: 7.91 | J178: F2V | K178: 10.93 | L178: 1.05 | M178: 0.392 | N178: 0.001 | O178: 0.1985472222 | P178: -21.18238889 | Q178: 91.49130833 | R178: 3.10310081 | S178: 1.73689919 | T178: 6501.719262 | U178: 4.951761012 | V178: 0.8920717377 | W178: 1.770840308 | X178: 0.09606587374 | Y178: 0.002551020408 | Z178: 0.1 | AA178: 1 | AB178: 0.392 | AC178: 3.10310081 | AD178: 1.770840308 | AE178: #FFFDFF | AF178: 15394283 | AG178: 11249579
A179: 966 | B179: 0 | C179: 11 | D179: 56.13 | E179: -1 | F179: 42 | G179: 10 | H179: 19.3 | I179: 6.53 | J179: K0III | K179: 7.97 | L179: 0.79 | M179: 1.041 | N179: 0.001 | O179: 0.198925 | P179: -41.82797222 | Q179: 125.4705144 | R179: 1.037291607 | S179: 3.802708393 | T179: 4848.070494 | U179: 33.19581665 | V179: 1.196352241 | W179: 8.246312973 | X179: 0.0991217064 | Y179: 0.0009606147935 | Z179: 0.1 | AA179: 1 | AB179: 1.041 | AC179: 1.037291607 | AD179: 8.246312973 | AE179: #FFFADD | AF179: 13165310 | AG179: 9610681
A180: 971 | B180: 0 | C180: 12 | D180: 1.46 | E180: 1 | F180: 28 | G180: 36 | H180: 24.2 | I180: 7.19 | J180: F0 | K180: 10.9 | L180: 0.86 | M180: 0.398 | N180: 0.015 | O180: 0.2004055556 | P180: 28.60672222 | Q180: 91.74311927 | R180: 2.37713249 | S180: 2.46286751 | T180: 6478.482766 | U180: 9.663779324 | V180: 0.8952713482 | W180: 2.491626112 | X180: 0.07889908257 | Y180: 0.03768844221 | Z180: 0.1 | AA180: 1 | AB180: 0.398 | AC180: 2.37713249 | AD180: 2.491626112 | AE180: #FFFDFF | AF180: 15394283 | AG180: 11249579
A181: 974 | B181: 0 | C181: 12 | D181: 3.84 | E181: 1 | F181: 27 | G181: 5 | H181: 57 | I181: 8.73 | J181: K0 | K181: 38.88 | L181: 1.22 | M181: 1.045 | N181: 0.026 | O181: 0.2010666667 | P181: 27.09916667 | Q181: 25.72016461 | R181: 6.678631281 | S181: -1.838631281 | T181: 4841.012417 | U181: 0.1838855011 | V181: 1.198096493 | W181: 0.6155414987 | X181: 0.03137860082 | Y181: 0.02488038278 | Z181: 0.1 | AA181: 1 | AB181: 1.045 | AC181: 6.678631281 | AD181: 0.6155414987 | AE181: #FFFADD | AF181: 13165310 | AG181: 9610681
A182: 975 | B182: 0 | C182: 12 | D182: 5.19 | E182: -1 | F182: 58 | G182: 31 | H182: 29.3 | I182: 7.62 | J182: G5IV/V | K182: 17.21 | L182: 0.76 | M182: 0.758 | N182: 0.008 | O182: 0.2014416667 | P182: -57.47519444 | Q182: 58.10575247 | R182: 3.798904352 | S182: 1.041095648 | T182: 5411.173715 | U182: 2.608784824 | V182: 1.071856182 | W182: 1.855633329 | X182: 0.04416037188 | Y182: 0.01055408971 | Z182: 0.1 | AA182: 1 | AB182: 0.758 | AC182: 3.798904352 | AD182: 1.855633329 | AE182: #FFFBEC | AF182: 14017526 | AG182: 10266291
A183: 981 | B183: 0 | C183: 12 | D183: 8.05 | E183: 1 | F183: 53 | G183: 37 | H183: 26.1 | I183: 6.87 | J183: F0 | K183: 9.42 | L183: 0.74 | M183: 0.262 | N183: 0.004 | O183: 0.2022361111 | P183: 53.62391667 | Q183: 106.1571125 | R183: 1.740254514 | S183: 3.099745486 | T183: 7067.656314 | U183: 17.37393508 | V183: 0.820639791 | W183: 2.807076442 | X183: 0.07855626327 | Y183: 0.01526717557 | Z183: 0.1 | AA183: 1 | AB183: 0.262 | AC183: 1.740254514 | AD183: 2.807076442 | AE183: #FFFEFF | AF183: 15918566 | AG183: 11642792
A184: 986 | B184: 0 | C184: 12 | D184: 13.85 | E184: 1 | F184: 39 | G184: 54 | H184: 5.7 | I184: 7.43 | J184: F0 | K184: 10.44 | L184: 0.83 | M184: 0.335 | N184: 0.003 | O184: 0.2038472222 | P184: 39.90158333 | Q184: 95.78544061 | R184: 2.523502493 | S184: 2.316497507 | T184: 6734.470468 | U184: 8.444987336 | V184: 0.861240691 | W184: 2.155502758 | X184: 0.07950191571 | Y184: 0.008955223881 | Z184: 0.1 | AA184: 1 | AB184: 0.335 | AC184: 2.523502493 | AD184: 2.155502758 | AE184: #FFFDFF | AF184: 15656425 | AG184: 11380650
A185: 996 | B185: 0 | C185: 12 | D185: 28.2 | E185: 1 | F185: 20 | G185: 14 | H185: 3.8 | I185: 8.18 | J185: G5 | K185: 19.39 | L185: 1 | M185: 0.669 | N185: 0.013 | O185: 0.2078333333 | P185: 20.23438889 | Q185: 51.57297576 | R185: 4.617889045 | S185: 0.2221109546 | T185: 5626.741693 | U185: 1.226999489 | V185: 1.030791943 | W185: 1.176966824 | X185: 0.05157297576 | Y185: 0.01943198804 | Z185: 0.1 | AA185: 1 | AB185: 0.669 | AC185: 4.617889045 | AD185: 1.176966824 | AE185: #FFFCF1 | AF185: 14345459 | AG185: 10462898
A186: 999 | B186: 0 | C186: 12 | D186: 30.12 | E186: 1 | F186: 14 | G186: 33 | H186: 49.3 | I186: 8.44 | J186: K0 | K186: 24.69 | L186: 1.2 | M186: 0.739 | N186: 0.015 | O186: 0.2083666667 | P186: 14.56369444 | Q186: 40.50222762 | R186: 5.40260545 | S186: -0.5626054497 | T186: 5455.196906 | U186: 0.595604294 | V186: 1.063206352 | W186: 0.8723967419 | X186: 0.04860267315 | Y186: 0.02029769959 | Z186: 0.1 | AA186: 1 | AB186: 0.739 | AC186: 5.40260545 | AD186: 0.8723967419 | AE186: #FFFCED | AF186: 14083061 | AG186: 10331827
A187: 1000 | B187: 0 | C187: 12 | D187: 30.13 | E187: -1 | F187: 22 | G187: 4 | H187: 1.5 | I187: 8.73 | J187: K0V+... | K187: 15.32 | L187: 1.34 | M187: 0.707 | N187: 0.002 | O187: 0.2083694444 | P187: -21.93291667 | Q187: 65.27415144 | R187: 4.656293826 | S187: 0.1837061735 | T187: 5531.712537 | U187: 1.184356559 | V187: 1.048499892 | W187: 1.196404438 | X187: 0.08746736292 | Y187: 0.002828854314 | Z187: 0.1 | AA187: 1 | AB187: 0.707 | AC187: 4.656293826 | AD187: 1.196404438 | AE187: #FFFCEF | AF187: 14214132 | AG187: 10397362
A188: 1003 | B188: 0 | C188: 12 | D188: 32.82 | E188: -1 | F188: 30 | G188: 51 | H188: 33.4 | I188: 8.66 | J188: G8/K0V | K188: 21.09 | L188: 1.23 | M188: 0.743 | N188: 0.007 | O188: 0.2091166667 | P188: -29.14072222 | Q188: 47.41583689 | R188: 5.280382899 | S188: -0.4403828987 | T188: 5445.844356 | U188: 0.6665716528 | V188: 1.065032274 | W188: 0.9260809649 | X188: 0.05832147937 | Y188: 0.009421265141 | Z188: 0.1 | AA188: 1 | AB188: 0.743 | AC188: 5.280382899 | AD188: 0.9260809649 | AE188: #FFFCED | AF188: 14083062 | AG188: 10266291
A189: 1013 | B189: 0 | C189: 12 | D189: 38.75 | E189: -1 | F189: 26 | G189: 51 | H189: 12 | I189: 7.95 | J189: K1IV | K189: 15.34 | L189: 0.99 | M189: 0.945 | N189: 0 | O189: 0.2107638889 | P189: -25.14666667 | Q189: 65.18904824 | R189: 3.879126798 | S189: 0.9608732019 | T189: 5023.373663 | U189: 2.422976939 | V189: 1.154602542 | W189: 2.075103003 | X189: 0.06453715776 | Y189: 0 | Z189: 0.1 | AA189: 1 | AB189: 0.945 | AC189: 3.879126798 | AD189: 2.075103003 | AE189: #FFFAE2 | AF189: 13427451 | AG189: 9807287
A190: 1026 | B190: 0 | C190: 12 | D190: 47.96 | E190: 1 | F190: 46 | G190: 5 | H190: 43.6 | I190: 6.63 | J190: F2 | K190: 18.06 | L190: 0.76 | M190: 0.402 | N190: 0.005 | O190: 0.2133222222 | P190: 46.09544444 | Q190: 55.3709856 | R190: 2.91358873 | S190: 1.92641127 | T190: 6463.119001 | U190: 5.896095484 | V190: 0.8973995371 | W190: 1.955482512 | X190: 0.04208194906 | Y190: 0.01243781095 | Z190: 0.1 | AA190: 1 | AB190: 0.402 | AC190: 2.91358873 | AD190: 1.955482512 | AE190: #FFFDFF | AF190: 15328747 | AG190: 11184044
A191: 1031 | B191: 0 | C191: 12 | D191: 50.38 | E191: -1 | F191: 57 | G191: 54 | H191: 45.7 | I191: 7.22 | J191: K0V | K191: 49.18 | L191: 0.78 | M191: 0.775 | N191: 0.002 | O191: 0.2139944444 | P191: -56.08730556 | Q191: 20.33346889 | R191: 5.678942622 | S191: -0.838942622 | T191: 5372.622983 | U191: 0.4617670619 | V191: 1.079547182 | W191: 0.7919444717 | X191: 0.01586010573 | Y191: 0.002580645161 | Z191: 0.1 | AA191: 1 | AB191: 0.775 | AC191: 5.678942622 | AD191: 0.7919444717 | AE191: #FFFBEB | AF191: 14017526 | AG191: 10200756
A192: 1043 | B192: 0 | C192: 13 | D192: 1.8 | E192: 1 | F192: 49 | G192: 55 | H192: 35.4 | I192: 7.17 | J192: A2 | K192: 8.09 | L192: 0.76 | M192: 0.202 | N192: 0.007 | O192: 0.2171666667 | P192: 49.9265 | Q192: 123.6093943 | R192: 1.709742608 | S192: 3.130257392 | T192: 7375.458276 | U192: 17.86911142 | V192: 0.7863918123 | W192: 2.614143624 | X192: 0.09394313968 | Y192: 0.03465346535 | Z192: 0.1 | AA192: 1 | AB192: 0.202 | AC192: 1.709742608 | AD192: 2.614143624 | AE192: #FDFEFF | AF192: 16180708 | AG192: 11839399
A193: 1044 | B193: 0 | C193: 13 | D193: 2.62 | E193: -1 | F193: 45 | G193: 10 | H193: 34.8 | I193: 10.74 | J193: K5 | K193: 27.5 | L193: 1.94 | M193: 1.308 | N193: 0.002 | O193: 0.2173944444 | P193: -44.82366667 | Q193: 36.36363636 | R193: 7.936663469 | S193: -3.096663469 | T193: 4401.063067 | U193: 0.05772110178 | V193: 1.317863414 | W193: 0.4172613023 | X193: 0.07054545455 | Y193: 0.001529051988 | Z193: 0.1 | AA193: 1 | AB193: 1.308 | AC193: 7.936663469 | AD193: 0.4172613023 | AE193: #FFF8CF | AF193: 12312831 | AG193: 8955071
A194: 1051 | B194: 0 | C194: 13 | D194: 5.94 | E194: 1 | F194: 20 | G194: 11 | H194: 25.5 | I194: 8.75 | J194: F5 | K194: 11.11 | L194: 1.11 | M194: 0.401 | N194: 0.02 | O194: =B194+C194/60+D194/3600 -> 0.2183166667 | P194: =E194*F194+G194/60+H194/3600 -> 20.19041667 | Q194: =1000/K194 -> 90.0090009 | R194: =I194-5*LOG10(Q194)+5 -> 3.978570295 | S194: =4.84-R194 -> 0.8614297053 | T194: =10^(3.939654-0.395361*M194+0.2082113*M194^2-0.0604097*M194^3) -> 6466.950463 | U194: =10^(0.4*S194) -> 2.210914165 | V194: =5800/T194 -> 0.8968678565 | W194: =V194^2*U194^0.5 -> 1.196032166 | X194: =L194/K194 -> 0.099909991 | Y194: =N194/M194 -> 0.04987531172 | Z194: =$Z$1 -> 0.1 | AA194: =IF(ISERROR(AND(X194>0,X194<Z194,Y194<Z194)),0,IF(OR(AND(X194>0,X194<Z194,Y194<Z194),I194<1.5),1,0)) -> 1 | AB194: =IF(AA194=1,M194,"") -> 0.401 | AC194: =IF(AA194=1,R194,"") -> 3.978570295 | AD194: =W194 -> 1.196032166 | AE194: =getRGB_hex(T194) -> #FFFDFF | AF194: 15328747 | AG194: 11184044
A195: 1058 | B195: 0 | C195: 13 | D195: 9.98 | E195: -1 | F195: 43 | G195: 3 | H195: 54.6 | I195: 7.57 | J195: F5IV | K195: 14.72 | L195: 0.86 | M195: 0.453 | N195: 0.015 | O195: 0.2194388889 | P195: -42.93483333 | Q195: 67.93478261 | R195: 3.40953905 | S195: 1.43046095 | T195: 6275.764432 | U195: 3.73408655 | V195: 0.9241902023 | W195: 1.65049765 | X195: 0.05842391304 | Y195: 0.03311258278 | Z195: 0.1 | AA195: 1 | AB195: 0.453 | AC195: 3.40953905 | AD195: 1.65049765 | AE195: #FFFDFF | AF195: =getRGB_VBA(T195,0.8) -> 15131885 | AG195: =getRGB_VBA(T195,0.4) -> 11052973
A196: 1063 | B196: 0 | C196: 13 | D196: 12.64 | E196: 1 | F196: 62 | G196: 2 | H196: 27.3 | I196: 6.63 | J196: Am... | K196: 8.55 | L196: 0.63 | M196: 0.226 | N196: 0.005 | O196: 0.2201777778 | P196: 62.04091667 | Q196: 116.9590643 | R196: 1.289830574 | S196: 3.550169426 | T196: 7248.35899 | U196: 26.30678471 | V196: 0.8001811179 | W196: 3.284055464 | X196: 0.07368421053 | Y196: 0.02212389381 | Z196: 0.1 | AA196: 1 | AB196: 0.226 | AC196: 1.289830574 | AD196: 3.284055464 | AE196: #FEFEFF | AF196: 16115173 | AG196: 11773863
A197: 1067 | B197: 0 | C197: 13 | D197: 14.15 | E197: 1 | F197: 15 | G197: 11 | H197: 1 | I197: 2.83 | J197: B2IV | K197: 9.79 | L197: 0.81 | M197: -0.19 | N197: 0.002 | O197: 0.2205972222 | P197: 15.18361111 | Q197: 102.145046 | R197: -2.216086541 | S197: 7.056086541 | T197: 10536.66975 | U197: 664.4076379 | V197: 0.5504585547 | W197: 7.8102792 | X197: 0.08273748723 | Y197: -0.01052631579 | Z197: 0.1 | AA197: 1 | AB197: -0.19 | AC197: -2.216086541 | AD197: 7.8102792 | AE197: #EEFEFF | AF197: 16770775 | AG197: 13150365
A198: 1071 | B198: 0 | C198: 13 | D198: 17.66 | E198: -1 | F198: 23 | G198: 43 | H198: 57.1 | I198: 7.98 | J198: F2V | K198: 11.12 | L198: 1.08 | M198: 0.396 | N198: 0.013 | O198: 0.2215722222 | P198: -22.26747222 | Q198: 89.92805755 | R198: 3.210523936 | S198: 1.629476064 | T198: 6486.202706 | U198: 4.485288942 | V198: 0.8942057878 | W198: 1.693441372 | X198: 0.09712230216 | Y198: 0.03282828283 | Z198: 0.1 | AA198: 1 | AB198: 0.396 | AC198: 3.210523936 | AD198: 1.693441372 | AE198: #FFFDFF | AF198: 15394283 | AG198: 11249579
A199: 1072 | B199: 0 | C199: 13 | D199: 18.28 | E199: -1 | F199: 20 | G199: 37 | H199: 7.7 | I199: 7.45 | J199: F5IV/V | K199: 10.64 | L199: 0.9 | M199: 0.48 | N199: 0.015 | O199: 0.2217444444 | P199: -19.38119444 | Q199: 93.98496241 | R199: 2.58470814 | S199: 2.25529186 | T199: 6182.608889 | U199: 7.982092276 | V199: 0.9381153011 | W199: 2.486398936 | X199: 0.08458646617 | Y199: 0.03125 | Z199: 0.1 | AA199: 1 | AB199: 0.48 | AC199: 2.58470814 | AD199: 2.486398936 | AE199: #FFFDFD | AF199: 15066350 | AG199: 10987437
A200: 1073 | B200: 0 | C200: 13 | D200: 19.34 | E200: 1 | F200: 8 | G200: 55 | H200: 47.6 | I200: 7.72 | J200: F0 | K200: 10.64 | L200: 0.91 | M200: 0.333 | N200: 0.006 | O200: 0.2220388889 | P200: 8.929888889 | Q200: 93.98496241 | R200: 2.85470814 | S200: 1.98529186 | T200: 6743.050916 | U200: 6.224675902 | V200: 0.860144773 | W200: 1.845871571 | X200: 0.08552631579 | Y200: 0.01801801802 | Z200: 0.1 | AA200: 1 | AB200: 0.333 | AC200: 2.85470814 | AD200: 1.845871571 | AE200: #FFFDFF | AF200: 15656425 | AG200: 11446186
... 2050 more rows

Sheet 一等星
A1: HIP番号 | B1: 固有名 | C1: B-V色指数 | D1: 絶対等級
A2: 7588 | B2: アケルナル | C2: -0.158 | D2: -2.771784749
A3: 21421 | B3: アルデバラン | C3: 1.538 | D3: -0.6312448416
A4: 24608 | B4: カペラ | C4: 0.795 | D4: -0.4793834635
A5: 37279 | B5: プロキオン | C5: 0.432 | D5: 2.681298621
A6: 37826 | B6: ポルックス | C6: 0.991 | D6: 1.088030415
A7: 49669 | B7: レグルス | C7: -0.087 | D7: -0.5191053713
A8: 60718 | B8: アクルックス | C8: -0.243 | D8: -4.193395235
A9: 62434 | B9: ベクルックス | C9: -0.238 | D9: -3.919291336
A10: 65474 | B10: スピカ | C10: -0.235 | D10: -3.545898098
A11: 68702 | B11: アゲナ | C11: -0.231 | D11: -5.424541999
A12: 69673 | B12: アルクツールス | C12: 1.239 | D12: -0.3067128393
A13: 71683 | B13: リゲル・ケンタウルス | C13: 0.71 | D13: 4.34237068
A14: 91262 | B14: ベガ | C14: -0.001 | D14: 0.5817699133
A15: 97649 | B15: アルタイル | C15: 0.221 | D15: 2.203928062
A16: 113368 | B16: フォーマルハウト | C16: 0.145 | D16: 1.741052641
A17: 24436 | B17: リゲル | C17: -0.03 | D17: -6.693437745
A18: 27989 | B18: ベテルギウス | C18: 1.5 | D18: -5.13737731
A19: 30438 | B19: カノープス | C19: 0.164 | D19: -5.528578458
A20: 32349 | B20: シリウス | C20: 0.009 | D20: 1.454398907
A21: 80763 | B21: アンタレス | C21: 1.865 | D21: -5.278031201
A22: 102098 | B22: デネブ | C22: 0.092 | D22: -8.728393131
A23: 0 | B23: 太陽 | C23: 0.65 | D23: 4.83
